Workbook

Sheet Инструкция
AA1: (требуется обновление)
B2: ="Код шаблона: " & GetCode() -> Код шаблона: INV.VSNA.2019YEAR
B3: ="Версия " & GetVersion() -> Версия 1.0
B5: =Титульный!E5 -> Контроль за использованием инвестиционных ресурсов, включаемых в регулируемые государством цены (тарифы) в сфере водоснабжения за 2019 год
E7: • На рабочем месте должен быть установлен MS Office 2007 SP3, 2010, 2013, 2016 с полной версией MS Excel • Макросы во время работы должны быть включены (!) • Для корректной работы отчёта требуется выбрать низкий уровень безопасности (В меню MS Excel 2007/2010/2013/2016: Параметры Excel | Центр управления безопасностью | Параметры центра управления безопасностью | Параметры макросов | Включить все макросы | ОК)
E14: • Если Вы работаете в табличном процессоре MS Excel 2007 и выше, то можете использовать для работы формат XLSB (Двоичная книга Excel). При работе в формате XLSB заметно быстрее происходит сохранение файла, а также уменьшается размер по сравнению с форматами XLS и XLSM • Не рекомендуется снимать защиту с листов и каким-либо образом модифицировать защищаемые формулы и расчётные поля, в противном случае, отчёт будет отклонён системой • При сохранении не следует выбирать формат XLSX (Книга Excel), так как в указанном формате макросы, необходимые для работы отчёта, безвозвратно удаляются
E21: A | F21: - предназначенные для заполнения | O21: A | P21: - ссылки и автозаполняемые поля
E22: A | F22: - с формулами и константами | O22: A | P22: - обязательные для заполнения
E35: Если в предложенном Вам списке необходимая организация, МР/МО отсутствуют, обновите реестры с помощью кнопок В результате синхронизации с базой данных список организаций (МР/МО) будет заменён актуальным (механизм синхронизации требует подключения к сети Интернет и основан на использовании протокола HTTPS (TCP порт 443)) Если после обновления Вам не удалось найти необходимую организацию в списке, обратитесь к ответственному за поддержание реестра Вашего региона.
E46: • При сохранении шаблона осуществляется проверка корректности данных, в том числе на наличие значений в ячейках, обязательных для заполнения • Если какая-то ячейка не удовлетворяет условию проверки, на лист «Проверка» добавляется гиперссылка на данную ячейку и указывается причина ошибки • В колонке «Статус» для каждого сообщения возможны 2 значения: ошибка и предупреждение • При наличии сообщений со статусом «Ошибка» шаблон будет отклонён системой и не будет загружен в хранилище данных, сообщения со статусом «Предупреждение» носят информационный характер, и такой шаблон будет принят системой
E58: Консультации: | K58: Обратиться за помощью
E59: Дистрибутивы: | K59: Перейти
E70: Общая инструкция по заполнению отчетной формы:
E71: Инструкция по заполнению
E73: Обосновывающие материалы необходимо загружать с помощью "ЕИАС Мониторинг":
E74: Руководство по загрузке документов
E84: Отчётные формы: | K84: Перейти к разделу
E86: Контакты специалистов ЦА ФАС России:
E87: ФИО: | K87: Бутко Татьяна Викторовна
E88: E-mail: | K88: butko@fas.gov.ru
E90: ФИО: | K90: Сондоевская Ксения Александровна
E91: E-mail: | K91: demicheva@fas.gov.ru
E100: При наличии подключения к Интернет, можно автоматически проверять наличие доступных обновлений. Выберите способ оповещения о наличии обновлений для отчёта:
F102: проверять доступные обновления (рекомендуется) | AA102: y
F104: никогда не проверять наличие обновлений (не рекомендуется)

Sheet Лог обновления (hidden)
A1: Дата/Время | B1: Сообщение | C1: Статус
A2: 2019-04-15T16:01:26 | B2: Проверка доступных обновлений... | C2: Информация
A3: 2019-04-15T16:01:27 | B3: Нет доступных обновлений для отчёта с кодом INV.VSNA.2019YEAR! | C3: Информация
A4: 2019-04-24T11:59:39 | B4: Проверка доступных обновлений... | C4: Информация
A5: 2019-04-24T11:59:40 | B5: Нет доступных обновлений для отчёта с кодом INV.VSNA.2019YEAR! | C5: Информация
A6: 2019-04-24T11:59:51 | B6: Проверка доступных обновлений... | C6: Информация
A7: 2019-04-24T11:59:52 | B7: Нет доступных обновлений для отчёта с кодом INV.VSNA.2019YEAR! | C7: Информация

Sheet Титульный
F4: =version -> Версия 1.0
E5: ="Контроль за использованием инвестиционных ресурсов, включаемых в регулируемые государством цены (тарифы) в сфере водоснабжения за " & god & " год" -> Контроль за использованием инвестиционных ресурсов, включаемых в регулируемые государством цены (тарифы) в сфере водоснабжения за 2019 год
E7: Субъект РФ | F7: Республика Башкортостан
E9: Период регулирования | F9: 2019
E11: Тип отчета | F11: план
E13: Наименование ИП | F13: Инвестиционная программа АО "Водоснабжающая компания" по развитию, модернизации, реконструкции систем коммунального водоснабжения и канализации городского округа город Стерлитамак на 2017 - 2019 годы | H13: 1 | I13: 26758634 | J13: 16,222.83
E16: Наименование организации | F16: АО "Водоснабжающая компания"
E17: ИНН | F17: 0268055772
E18: КПП | F18: 026801001
E19: Наименование (описание) обособленного подразделения
E21: Организационно-правовая форма | F21: 1 22 47 | Публичные акционерные общества
E22: Вид деятельности | F22: Производство (подъём / добыча) воды :: Очистка воды :: Транспортировка воды :: Сбыт (распределение) воды
E24: ИП утверждена с НДС | F24: нет
E31: Статус ИП | F31: продолжение ИП
E33: Показатели качества и надежности | F33: по отдельным мероприятиям
E35: Мероприятия по концессионному соглашению | F35: ИП не содержит мероприятия, реализуемые в рамках КС
E37: Корректировка НВВ в связи с неисполнением ИП | F37: нет
E40: Дата начала ИП | F40: 01.01.2017
E41: Дата окончания ИП | F41: 31.12.2019
E43: Период реализации ИП | F43: =CalcPeriod(date_start,date_end) -> 3 года
E46: Наименование решения | F46: Об утверждении инвестиционных программ
E47: Тип решения | F47: приказ
E48: Номер решения | F48: 04/06-435
E49: Дата решения | F49: 30.11.2017
E50: Ссылка на обосновывающие материалы (на дату утверждения ИП) | F50: https://portal.eias.ru/Portal/DownloadPage.aspx?type=12&guid=bb8ecfb9-d126-4c5b-908c-55534a4ab604
E51: ="Ссылка на обосновывающие материалы (на дату представления плана на " & god & ")" -> Ссылка на обосновывающие материалы (на дату представления плана на 2019) | F51: https://portal.eias.ru/Portal/DownloadPage.aspx?type=12&guid=cbf591bc-2316-4808-88c8-4487ebc8e95b
E54: Изменения ИП
E55: Ссылка на обосновывающие материалы (Изменения ИП)
E58: Причина прекращения действия ИП
E59: Описание причины прекращения действия ИП
E60: Ссылка на обосновывающие материалы (ИП прекратила действие)
F62: Адрес регулируемой организации
E63: Юридический адрес | F63: 453120, РБ г.Стерлитамак, ул.Днепровская, д.3
E64: Почтовый адрес | F64: 453120, РБ г.Стерлитамак, ул.Днепровская, д.3
F65: Ответственный за предоставление информации (от регулируемой организации)
E66: Фамилия, имя, отчество | F66: Кутузова Анастасия Петровна
E67: Должность | F67: начальник ПЭО МУП "МРКВК" г.о. город Стерлитамак
E68: Контактный телефон | F68: 8 (3473) 24-00-98
E69: e-mail | F69: stervod3@mail.ru

Sheet Территории ИП
D4: Территории оказания услуг, на которых утверждена ИП
D5: =region_name & " " & org -> Республика Башкортостан АО "Водоснабжающая компания"
C7: 1 | D7: № п/п | E7: Муниципальный район | F7: Муниципальное образование | G7: ОКТМО | H7: Тип муниципального образования | I7: Результат проверки наличия данных
D8: 0
D9: 1 | E9: Город Стерлитамак | F9: город Стерлитамак | G9: 80745000 | H9: =IFERROR(IF(LEN(G9)=0,"",VLOOKUP(G9,OKTMO_TYPE_LIST,2,FALSE)),"МО отсутствует") -> городской округ | I9: ОК (А) | J9: Поиск данных в ручном режиме | M9: ОК

Sheet ИП
E2: 1
AD3: ="Размер средств по инвестиционной программе, учтенных в НВВ на " & god & " год, тыс.руб." -> Размер средств по инвестиционной программе, учтенных в НВВ на 2019 год, тыс.руб. | AQ3: 16,222.44
D4: ="Справка о финансировании в тыс.руб " & IF(nds = "да", "(c НДС)", "(без НДС)") -> Справка о финансировании в тыс.руб (без НДС) | AD4: ="Размер средств, исключаемых из НВВ на " & god & " год, в связи с неисполнением ИП, тыс. руб." -> Размер средств, исключаемых из НВВ на 2019 год, в связи с неисполнением ИП, тыс. руб. | AQ4: =AU9 -> 0.00
D5: =region_name & " " & org -> Республика Башкортостан АО "Водоснабжающая компания" | AD5: Расходы на капитальные вложения (инвестиции), тыс.руб. | AQ5: =ip_cost -> 16,222.83
D7: № п/п | E7: Группа, к которой относятся мероприятия инвестиционной программы | F7: Подгруппа, к которой относятся мероприятия инвестиционной программы | G7: Наименование строек | H7: Территория оказания услуг | K7: Период реализации согласно ИП, лет | L7: Плановый год ввода в эксплуатацию / выполнения мероприятия | M7: Стадия выполнения, % | N7: № объекта | P7: Объект инфраструктуры ВС | Q7: Наименование объекта | R7: Тип объекта | S7: Адрес объекта | Z7: Территория оказания услуг | AE7: № источника | AG7: Источник финансирования | AH7: В рамках концессионного соглашения | AI7: Наименование концессионного соглашения | AJ7: Дата начала | AK7: Дата окончания | AL7: Наименование решения по КС | AM7: Тип решения по КС | AN7: № решения по КС | AO7: Дата принятия решения по КС | AP7: Внесены изменения по источникам финансирования | AQ7: Всего утверждено на весь период реализации ИП (план) | AR7: Всего утверждено на весь период реализации ИП (корректировка) | AS7: Всего утверждено на весь период реализации ИП (дельта) | AT7: Всего утверждено на предыдущий период реализации ИП | AU7: ="Размер средств, исключаемых из НВВ на " & god & " год, в связи с неисполнением ИП" -> Размер средств, исключаемых из НВВ на 2019 год, в связи с неисполнением ИП | AV7: ="Утверждено на " & god & " (план)" -> Утверждено на 2019 (план) | AW7: ="Утверждено на " & god & " (корректировка)" -> Утверждено на 2019 (корректировка) | AX7: ="Утверждено на " & god & " (дельта)" -> Утверждено на 2019 (дельта) | AY7: ="Утверждено на " & god+1 & " (план)" -> Утверждено на 2020 (план) | AZ7: ="Утверждено на " & god+1 & " (корректировка)" -> Утверждено на 2020 (корректировка) | BA7: ="Утверждено на " & god+1 & " (дельта)" -> Утверждено на 2020 (дельта) | BB7: ="Утверждено на " & god+2 & " (план)" -> Утверждено на 2021 (план) | BC7: ="Утверждено на " & god+2 & " (корректировка)" -> Утверждено на 2021 (корректировка) | BD7: ="Утверждено на " & god+2 & " (дельта)" -> Утверждено на 2021 (дельта) | BE7: ="Утверждено на " & god+3 & " (план)" -> Утверждено на 2022 (план) | BF7: ="Утверждено на " & god+3 & " (корректировка)" -> Утверждено на 2022 (корректировка) | BG7: ="Утверждено на " & god+3 & " (дельта)" -> Утверждено на 2022 (дельта) | BH7: ="Утверждено на " & god+4 & " (план)" -> Утверждено на 2023 (план) | BI7: ="Утверждено на " & god+4 & " (корректировка)" -> Утверждено на 2023 (корректировка) | BJ7: ="Утверждено на " & god+4 & " (дельта)" -> Утверждено на 2023 (дельта) | BK7: ="Утверждено на оставшийся период (план)" -> Утверждено на оставшийся период (план) | BL7: ="Утверждено на оставшийся период (корректировка)" -> Утверждено на оставшийся период (корректировка) | BM7: ="Утверждено на оставшийся период (дельта)" -> Утверждено на оставшийся период (дельта)
H8: Муниципальный район | I8: Муниципальное образование | J8: ОКТМО | S8: Муниципальный район | T8: Муниципальное образование | U8: ОКТМО | V8: Населенный пункт | W8: ОКТМО | X8: улица, проезд, проспект, переулок, и т.п. | Y8: дом, корпус, строение | Z8: Муниципальный район | AA8: Муниципальное образование | AB8: ОКТМО | AC8: Населенный пункт | AD8: ОКТМО | AV8: Всего | AW8: Всего | AX8: Всего | AY8: Всего | AZ8: Всего | BA8: Всего | BB8: Всего | BC8: Всего | BD8: Всего | BE8: Всего | BF8: Всего | BG8: Всего | BH8: Всего | BI8: Всего | BJ8: Всего
AG9: Всего в рамках ИП
AG10: Всего | AQ10: =SUM(AT10,AV10,AY10,BB10,BE10,BH10,BK10) -> 211,361.00 | AR10: =SUM(AT10,AW10,AZ10,BC10,BF10,BI10,BL10) -> 25,672.00 | AS10: =AQ10-AR10 -> 185,689.00 | AT10: =AT11+AT16+AT20+AT24 -> 25,672.00 | AU10: =AU11+AU16+AU20+AU24 -> 0.00 | AV10: =AV11+AV16+AV20+AV24 -> 185,689.00 | AW10: =AW11+AW16+AW20+AW24 -> 0.00 | AX10: =AV10-AW10 -> 185,689.00 | AY10: =AY11+AY16+AY20+AY24 -> 0.00 | AZ10: =AZ11+AZ16+AZ20+AZ24 -> 0.00 | BA10: =AY10-AZ10 -> 0.00 | BB10: =BB11+BB16+BB20+BB24 -> 0.00 | BC10: =BC11+BC16+BC20+BC24 -> 0.00 | BD10: =BB10-BC10 -> 0.00 | BE10: =BE11+BE16+BE20+BE24 -> 0.00 | BF10: =BF11+BF16+BF20+BF24 -> 0.00 | BG10: =BE10-BF10 -> 0.00 | BH10: =BH11+BH16+BH20+BH24 -> 0.00 | BI10: =BI11+BI16+BI20+BI24 -> 0.00 | BJ10: =BH10-BI10 -> 0.00 | BK10: =BK11+BK16+BK20+BK24 -> 0.00 | BL10: =BL11+BL16+BL20+BL24 -> 0.00 | BM10: =BK10-BL10 -> 0.00
AF11: 1 | AG11: Собственные средства | AQ11: 211,361.00 | AR11: 25,672.00 | AS11: 185,689.00 | AT11: =AT12+AT13+AT14+AT15 -> 25,672.00 | AU11: =AU12+AU13+AU14+AU15 -> 0.00 | AV11: =AV12+AV13+AV14+AV15 -> 185,689.00 | AW11: =AW12+AW13+AW14+AW15 -> 0.00 | AX11: 185,689.00 | AY11: =AY12+AY13+AY14+AY15 -> 0.00 | AZ11: =AZ12+AZ13+AZ14+AZ15 -> 0.00 | BA11: 0.00 | BB11: =BB12+BB13+BB14+BB15 -> 0.00 | BC11: =BC12+BC13+BC14+BC15 -> 0.00 | BD11: 0.00 | BE11: =BE12+BE13+BE14+BE15 -> 0.00 | BF11: =BF12+BF13+BF14+BF15 -> 0.00 | BG11: 0.00 | BH11: =BH12+BH13+BH14+BH15 -> 0.00 | BI11: =BI12+BI13+BI14+BI15 -> 0.00 | BJ11: 0.00 | BL11: =BL12+BL13+BL14+BL15 -> 0.00 | BM11: =BK11-BL11 -> 0.00
AF12: 1.1 | AG12: Прибыль направляемая на инвестиции | AQ12: 43,001.00 | AR12: 25,672.00 | AS12: 17,329.00 | AT12: =SUMIF($AG$49:$AG$120,$AG12,AT$49:AT$120) -> 25,672.00 | AU12: =SUMIF($BR$49:$BR$120,$BR12,AU$49:AU$120) -> 0.00 | AV12: 17,329.00 | AW12: 0.00 | AX12: 17,329.00 | AY12: =SUMIF($BR$49:$BR$120,$BR12,AY$49:AY$120) -> 0.00 | AZ12: 0.00 | BA12: 0.00 | BB12: =SUMIF($BR$49:$BR$120,$BR12,BB$49:BB$120) -> 0.00 | BC12: 0.00 | BD12: 0.00 | BE12: =SUMIF($BR$49:$BR$120,$BR12,BE$49:BE$120) -> 0.00 | BF12: 0.00 | BG12: 0.00 | BH12: =SUMIF($BR$49:$BR$120,$BR12,BH$49:BH$120) -> 0.00 | BI12: 0.00 | BJ12: 0.00 | BK12: =SUMIF($BR$49:$BR$120,$BR12,BK$49:BK$120) -> 0.00 | BL12: 0.00 | BM12: 0.00 | BR12: =AG12 & "0" -> Прибыль направляемая на инвестиции0
AF13: 1.2 | AG13: Амортизационные отчисления | AQ13: 0.00 | AR13: 0.00 | AS13: 0.00 | AT13: =SUMIF($AG$49:$AG$120,$AG13,AT$49:AT$120) -> 0.00 | AU13: 0.00 | AV13: 0.00 | AW13: 0.00 | AX13: 0.00 | AY13: 0.00 | AZ13: 0.00 | BA13: 0.00 | BB13: 0.00 | BC13: 0.00 | BD13: 0.00 | BE13: 0.00 | BF13: 0.00 | BG13: 0.00 | BH13: 0.00 | BI13: 0.00 | BJ13: 0.00 | BK13: 0.00 | BL13: 0.00 | BM13: 0.00 | BR13: =AG13 & "0" -> Амортизационные отчисления0
AF14: 1.3 | AG14: Прочие собственные средства | AQ14: 0.00 | AR14: 0.00 | AS14: 0.00 | AT14: =SUMIF($AG$49:$AG$120,$AG14,AT$49:AT$120) -> 0.00 | AU14: 0.00 | AV14: 0.00 | AW14: 0.00 | AX14: 0.00 | AY14: 0.00 | AZ14: 0.00 | BA14: 0.00 | BB14: 0.00 | BC14: 0.00 | BD14: 0.00 | BE14: 0.00 | BF14: 0.00 | BG14: 0.00 | BH14: 0.00 | BI14: 0.00 | BJ14: 0.00 | BL14: 0.00 | BM14: 0.00 | BR14: =AG14 & "0" -> Прочие собственные средства0
AF15: 1.4 | AG15: За счет платы за технологическое присоединение | AQ15: =SUM(AT15,AV15,AY15,BB15,BE15,BH15,BK15) -> 168,360.00 | AR15: =SUM(AT15,AW15,AZ15,BC15,BF15,BI15,BL15) -> 0.00 | AS15: =AQ15-AR15 -> 168,360.00 | AT15: =SUMIF($AG$49:$AG$120,$AG15,AT$49:AT$120) -> 0.00 | AU15: 0.00 | AV15: 168,360.00 | AW15: 0.00 | AX15: =AV15-AW15 -> 168,360.00 | AY15: 0.00 | AZ15: 0.00 | BA15: =AY15-AZ15 -> 0.00 | BB15: 0.00 | BC15: 0.00 | BD15: =BB15-BC15 -> 0.00 | BE15: 0.00 | BF15: 0.00 | BG15: =BE15-BF15 -> 0.00 | BH15: 0.00 | BI15: 0.00 | BJ15: =BH15-BI15 -> 0.00 | BK15: 0.00 | BL15: 0.00 | BM15: =BK15-BL15 -> 0.00 | BR15: =AG15 & "0" -> За счет платы за технологическое присоединение0
AF16: 2 | AG16: Привлеченные средства | AQ16: 0.00 | AR16: 0.00 | AS16: 0.00 | AT16: =SUM(AT17:AT19) -> 0.00 | AU16: =SUM(AU17:AU19) -> 0.00 | AV16: =SUM(AV17:AV19) -> 0.00 | AW16: =SUM(AW17:AW19) -> 0.00 | AX16: 0.00 | AY16: =SUM(AY17:AY19) -> 0.00 | AZ16: =SUM(AZ17:AZ19) -> 0.00 | BA16: 0.00 | BB16: =SUM(BB17:BB19) -> 0.00 | BC16: =SUM(BC17:BC19) -> 0.00 | BD16: 0.00 | BE16: =SUM(BE17:BE19) -> 0.00 | BF16: =SUM(BF17:BF19) -> 0.00 | BG16: 0.00 | BH16: =SUM(BH17:BH19) -> 0.00 | BI16: =SUM(BI17:BI19) -> 0.00 | BJ16: 0.00 | BK16: =SUM(BK17:BK19) -> 0.00 | BL16: =SUM(BL17:BL19) -> 0.00 | BM16: 0.00
AF17: 2.1 | AG17: Кредиты | AQ17: 0.00 | AR17: 0.00 | AS17: 0.00 | AT17: =SUMIF($AG$49:$AG$120,$AG17,AT$49:AT$120) -> 0.00 | AU17: =SUMIF($BR$49:$BR$120,$BR17,AU$49:AU$120) -> 0.00 | AV17: 0.00 | AW17: 0.00 | AX17: 0.00 | AY17: =SUMIF($BR$49:$BR$120,$BR17,AY$49:AY$120) -> 0.00 | AZ17: 0.00 | BA17: 0.00 | BB17: =SUMIF($BR$49:$BR$120,$BR17,BB$49:BB$120) -> 0.00 | BC17: 0.00 | BD17: 0.00 | BE17: =SUMIF($BR$49:$BR$120,$BR17,BE$49:BE$120) -> 0.00 | BF17: 0.00 | BG17: 0.00 | BH17: =SUMIF($BR$49:$BR$120,$BR17,BH$49:BH$120) -> 0.00 | BI17: 0.00 | BJ17: 0.00 | BK17: =SUMIF($BR$49:$BR$120,$BR17,BK$49:BK$120) -> 0.00 | BL17: 0.00 | BM17: 0.00 | BR17: =AG17 & "0" -> Кредиты0
AF18: 2.2 | AG18: Займы | AQ18: 0.00 | AR18: 0.00 | AS18: 0.00 | AT18: =SUMIF($AG$49:$AG$120,$AG18,AT$49:AT$120) -> 0.00 | AU18: 0.00 | AV18: 0.00 | AW18: 0.00 | AX18: 0.00 | AY18: 0.00 | AZ18: 0.00 | BA18: 0.00 | BB18: 0.00 | BC18: 0.00 | BD18: 0.00 | BE18: 0.00 | BF18: 0.00 | BG18: 0.00 | BH18: 0.00 | BI18: 0.00 | BJ18: 0.00 | BK18: 0.00 | BL18: 0.00 | BM18: 0.00 | BR18: =AG18 & "0" -> Займы0
AF19: 2.3 | AG19: Прочие привлеченные средства | AQ19: 0.00 | AR19: 0.00 | AS19: 0.00 | AT19: =SUMIF($AG$49:$AG$120,$AG19,AT$49:AT$120) -> 0.00 | AU19: 0.00 | AV19: 0.00 | AW19: 0.00 | AX19: 0.00 | AY19: 0.00 | AZ19: 0.00 | BA19: 0.00 | BB19: 0.00 | BC19: 0.00 | BD19: 0.00 | BE19: 0.00 | BF19: 0.00 | BG19: 0.00 | BH19: 0.00 | BI19: 0.00 | BJ19: 0.00 | BK19: 0.00 | BL19: 0.00 | BM19: 0.00 | BR19: =AG19 & "0" -> Прочие привлеченные средства0
AF20: 3 | AG20: Бюджетное финансирование | AQ20: 0.00 | AR20: 0.00 | AS20: 0.00 | AT20: =SUM(AT21:AT23) -> 0.00 | AU20: =SUM(AU21:AU23) -> 0.00 | AV20: =SUM(AV21:AV23) -> 0.00 | AW20: =SUM(AW21:AW23) -> 0.00 | AX20: 0.00 | AY20: =SUM(AY21:AY23) -> 0.00 | AZ20: =SUM(AZ21:AZ23) -> 0.00 | BA20: 0.00 | BB20: =SUM(BB21:BB23) -> 0.00 | BC20: =SUM(BC21:BC23) -> 0.00 | BD20: 0.00 | BE20: =SUM(BE21:BE23) -> 0.00 | BF20: =SUM(BF21:BF23) -> 0.00 | BG20: 0.00 | BH20: =SUM(BH21:BH23) -> 0.00 | BI20: =SUM(BI21:BI23) -> 0.00 | BJ20: 0.00 | BK20: =SUM(BK21:BK23) -> 0.00 | BL20: =SUM(BL21:BL23) -> 0.00 | BM20: 0.00
AF21: 3.1 | AG21: Федеральный бюджет | AQ21: 0.00 | AR21: 0.00 | AS21: 0.00 | AT21: =SUMIF($AG$49:$AG$120,$AG21,AT$49:AT$120) -> 0.00 | AU21: =SUMIF($BR$49:$BR$120,$BR21,AU$49:AU$120) -> 0.00 | AV21: 0.00 | AW21: 0.00 | AX21: 0.00 | AY21: =SUMIF($BR$49:$BR$120,$BR21,AY$49:AY$120) -> 0.00 | AZ21: 0.00 | BA21: 0.00 | BB21: =SUMIF($BR$49:$BR$120,$BR21,BB$49:BB$120) -> 0.00 | BC21: 0.00 | BD21: 0.00 | BE21: =SUMIF($BR$49:$BR$120,$BR21,BE$49:BE$120) -> 0.00 | BF21: 0.00 | BG21: 0.00 | BH21: =SUMIF($BR$49:$BR$120,$BR21,BH$49:BH$120) -> 0.00 | BI21: 0.00 | BJ21: 0.00 | BK21: =SUMIF($BR$49:$BR$120,$BR21,BK$49:BK$120) -> 0.00 | BL21: 0.00 | BM21: 0.00 | BR21: =AG21 & "0" -> Федеральный бюджет0
AF22: 3.2 | AG22: Бюджет субъекта РФ | AQ22: 0.00 | AR22: 0.00 | AS22: 0.00 | AT22: =SUMIF($AG$49:$AG$120,$AG22,AT$49:AT$120) -> 0.00 | AU22: 0.00 | AV22: 0.00 | AW22: 0.00 | AX22: 0.00 | AY22: 0.00 | AZ22: 0.00 | BA22: 0.00 | BB22: 0.00 | BC22: 0.00 | BD22: 0.00 | BE22: 0.00 | BF22: 0.00 | BG22: 0.00 | BH22: 0.00 | BI22: 0.00 | BJ22: 0.00 | BK22: 0.00 | BL22: 0.00 | BM22: 0.00 | BR22: =AG22 & "0" -> Бюджет субъекта РФ0
AF23: 3.3 | AG23: Бюджет муниципального образования | AQ23: 0.00 | AR23: 0.00 | AS23: 0.00 | AT23: =SUMIF($AG$49:$AG$120,$AG23,AT$49:AT$120) -> 0.00 | AU23: 0.00 | AV23: 0.00 | AW23: 0.00 | AX23: 0.00 | AY23: 0.00 | AZ23: 0.00 | BA23: 0.00 | BB23: 0.00 | BC23: 0.00 | BD23: 0.00 | BE23: 0.00 | BF23: 0.00 | BG23: 0.00 | BH23: 0.00 | BI23: 0.00 | BJ23: 0.00 | BK23: 0.00 | BL23: 0.00 | BM23: 0.00 | BR23: =AG23 & "0" -> Бюджет муниципального образования0
AF24: 4 | AG24: Прочие источники финансирования | AQ24: 0.00 | AR24: 0.00 | AS24: 0.00 | AT24: =SUM(AT25:AT26) -> 0.00 | AU24: =SUM(AU25:AU26) -> 0.00 | AV24: =SUM(AV25:AV26) -> 0.00 | AW24: =SUM(AW25:AW26) -> 0.00 | AX24: 0.00 | AY24: =SUM(AY25:AY26) -> 0.00 | AZ24: =SUM(AZ25:AZ26) -> 0.00 | BA24: 0.00 | BB24: =SUM(BB25:BB26) -> 0.00 | BC24: =SUM(BC25:BC26) -> 0.00 | BD24: 0.00 | BE24: =SUM(BE25:BE26) -> 0.00 | BF24: =SUM(BF25:BF26) -> 0.00 | BG24: 0.00 | BH24: =SUM(BH25:BH26) -> 0.00 | BI24: =SUM(BI25:BI26) -> 0.00 | BJ24: 0.00 | BK24: =SUM(BK25:BK26) -> 0.00 | BL24: =SUM(BL25:BL26) -> 0.00 | BM24: 0.00
AF25: 4.1 | AG25: Лизинг | AQ25: 0.00 | AR25: 0.00 | AS25: 0.00 | AT25: =SUMIF($AG$49:$AG$120,$AG25,AT$49:AT$120) -> 0.00 | AU25: =SUMIF($BR$49:$BR$120,$BR25,AU$49:AU$120) -> 0.00 | AV25: 0.00 | AW25: 0.00 | AX25: 0.00 | AY25: =SUMIF($BR$49:$BR$120,$BR25,AY$49:AY$120) -> 0.00 | AZ25: =SUMIF($BR$49:$BR$120,$BR25,AZ$49:AZ$120) -> 0.00 | BA25: 0.00 | BB25: =SUMIF($BR$49:$BR$120,$BR25,BB$49:BB$120) -> 0.00 | BC25: =SUMIF($BR$49:$BR$120,$BR25,BC$49:BC$120) -> 0.00 | BD25: 0.00 | BE25: =SUMIF($BR$49:$BR$120,$BR25,BE$49:BE$120) -> 0.00 | BF25: =SUMIF($BR$49:$BR$120,$BR25,BF$49:BF$120) -> 0.00 | BG25: 0.00 | BH25: =SUMIF($BR$49:$BR$120,$BR25,BH$49:BH$120) -> 0.00 | BI25: =SUMIF($BR$49:$BR$120,$BR25,BI$49:BI$120) -> 0.00 | BJ25: 0.00 | BK25: =SUMIF($BR$49:$BR$120,$BR25,BK$49:BK$120) -> 0.00 | BL25: =SUMIF($BR$49:$BR$120,$BR25,BL$49:BL$120) -> 0.00 | BM25: 0.00 | BR25: =AG25 & "0" -> Лизинг0
AF26: 4.2 | AG26: Прочие | AQ26: 0.00 | AR26: 0.00 | AS26: 0.00 | AT26: =SUMIF($AG$49:$AG$120,$AG26,AT$49:AT$120) -> 0.00 | AU26: 0.00 | AV26: 0.00 | AW26: 0.00 | AX26: 0.00 | AY26: =SUMIF($BR$49:$BR$120,$BR26,AY$49:AY$120) -> 0.00 | AZ26: =SUMIF($BR$49:$BR$120,$BR26,AZ$49:AZ$120) -> 0.00 | BA26: 0.00 | BB26: =SUMIF($BR$49:$BR$120,$BR26,BB$49:BB$120) -> 0.00 | BC26: =SUMIF($BR$49:$BR$120,$BR26,BC$49:BC$120) -> 0.00 | BD26: 0.00 | BE26: =SUMIF($BR$49:$BR$120,$BR26,BE$49:BE$120) -> 0.00 | BF26: =SUMIF($BR$49:$BR$120,$BR26,BF$49:BF$120) -> 0.00 | BG26: 0.00 | BH26: =SUMIF($BR$49:$BR$120,$BR26,BH$49:BH$120) -> 0.00 | BI26: =SUMIF($BR$49:$BR$120,$BR26,BI$49:BI$120) -> 0.00 | BJ26: 0.00 | BK26: =SUMIF($BR$49:$BR$120,$BR26,BK$49:BK$120) -> 0.00 | BL26: =SUMIF($BR$49:$BR$120,$BR26,BL$49:BL$120) -> 0.00 | BM26: 0.00 | BR26: =AG26 & "0" -> Прочие0
AG27: Всего в рамках КС
AG28: Всего | AQ28: =SUM(AT28,AV28,AY28,BB28,BE28,BH28,BK28) -> 0.00 | AR28: =SUM(AT28,AW28,AZ28,BC28,BF28,BI28,BL28) -> 0.00 | AS28: =AQ28-AR28 -> 0.00 | AT28: =AT29+AT34+AT38+AT42 -> 0.00 | AU28: =AU29+AU34+AU38+AU42 -> 0.00 | AV28: =AV29+AV34+AV38+AV42 -> 0.00 | AW28: =AW29+AW34+AW38+AW42 -> 0.00 | AX28: =AV28-AW28 -> 0.00 | AY28: =AY29+AY34+AY38+AY42 -> 0.00 | AZ28: =AZ29+AZ34+AZ38+AZ42 -> 0.00 | BA28: =AY28-AZ28 -> 0.00 | BB28: =BB29+BB34+BB38+BB42 -> 0.00 | BC28: =BC29+BC34+BC38+BC42 -> 0.00 | BD28: =BB28-BC28 -> 0.00 | BE28: =BE29+BE34+BE38+BE42 -> 0.00 | BF28: =BF29+BF34+BF38+BF42 -> 0.00 | BG28: =BE28-BF28 -> 0.00 | BH28: =BH29+BH34+BH38+BH42 -> 0.00 | BI28: =BI29+BI34+BI38+BI42 -> 0.00 | BJ28: =BH28-BI28 -> 0.00 | BK28: =BK29+BK34+BK38+BK42 -> 0.00 | BL28: =BL29+BL34+BL38+BL42 -> 0.00 | BM28: =BK28-BL28 -> 0.00
AF29: 1 | AG29: Собственные средства | AQ29: 0.00 | AR29: 0.00 | AS29: 0.00 | AT29: =AT30+AT31+AT32+AT33 -> 0.00 | AU29: =AU30+AU31+AU32+AU33 -> 0.00 | AV29: =AV30+AV31+AV32+AV33 -> 0.00 | AW29: =AW30+AW31+AW32+AW33 -> 0.00 | AX29: 0.00 | AY29: =AY30+AY31+AY32+AY33 -> 0.00 | AZ29: =AZ30+AZ31+AZ32+AZ33 -> 0.00 | BA29: 0.00 | BB29: =BB30+BB31+BB32+BB33 -> 0.00 | BC29: =BC30+BC31+BC32+BC33 -> 0.00 | BD29: 0.00 | BE29: =BE30+BE31+BE32+BE33 -> 0.00 | BF29: =BF30+BF31+BF32+BF33 -> 0.00 | BG29: 0.00 | BH29: =BH30+BH31+BH32+BH33 -> 0.00 | BI29: =BI30+BI31+BI32+BI33 -> 0.00 | BJ29: 0.00 | BK29: =BK30+BK31+BK32+BK33 -> 0.00 | BL29: =BL30+BL31+BL32+BL33 -> 0.00 | BM29: 0.00
AF30: 1.1 | AG30: Прибыль направляемая на инвестиции | AQ30: 0.00 | AR30: 0.00 | AS30: 0.00 | AT30: =SUMIF($BX$49:$BX$120,$BX30,AT$49:AT$120) -> 0.00 | AU30: 0.00 | AV30: 0.00 | AW30: 0.00 | AX30: 0.00 | AY30: =SUMIF($BX$49:$BX$120,$BX30,AY$49:AY$120) -> 0.00 | AZ30: 0.00 | BA30: 0.00 | BB30: =SUMIF($BX$49:$BX$120,$BX30,BB$49:BB$120) -> 0.00 | BC30: 0.00 | BD30: 0.00 | BE30: =SUMIF($BX$49:$BX$120,$BX30,BE$49:BE$120) -> 0.00 | BF30: 0.00 | BG30: 0.00 | BH30: =SUMIF($BX$49:$BX$120,$BX30,BH$49:BH$120) -> 0.00 | BI30: 0.00 | BJ30: 0.00 | BK30: =SUMIF($BX$49:$BX$120,$BX30,BK$49:BK$120) -> 0.00 | BL30: 0.00 | BM30: 0.00 | BX30: =AG30&"да" -> Прибыль направляемая на инвестициида
AF31: 1.2 | AG31: Амортизационные отчисления | AQ31: 0.00 | AR31: 0.00 | AS31: 0.00 | AT31: 0.00 | AU31: 0.00 | AV31: 0.00 | AW31: 0.00 | AX31: 0.00 | AY31: 0.00 | AZ31: 0.00 | BA31: 0.00 | BB31: 0.00 | BC31: 0.00 | BD31: 0.00 | BE31: 0.00 | BF31: 0.00 | BG31: 0.00 | BH31: 0.00 | BI31: 0.00 | BJ31: 0.00 | BK31: 0.00 | BL31: 0.00 | BM31: 0.00 | BX31: Амортизационные отчисленияда
AF32: 1.3 | AG32: Прочие собственные средства | AQ32: 0.00 | AR32: 0.00 | AS32: 0.00 | AT32: 0.00 | AU32: 0.00 | AV32: 0.00 | AW32: 0.00 | AX32: 0.00 | AY32: 0.00 | AZ32: 0.00 | BA32: 0.00 | BB32: 0.00 | BC32: 0.00 | BD32: 0.00 | BE32: 0.00 | BF32: 0.00 | BG32: 0.00 | BH32: 0.00 | BI32: 0.00 | BJ32: 0.00 | BK32: 0.00 | BL32: 0.00 | BM32: 0.00 | BX32: Прочие собственные средствада
AF33: 1.4 | AG33: За счет платы за технологическое присоединение | AQ33: 0.00 | AR33: 0.00 | AS33: 0.00 | AT33: 0.00 | AU33: 0.00 | AV33: 0.00 | AW33: 0.00 | AX33: 0.00 | AY33: 0.00 | AZ33: 0.00 | BA33: 0.00 | BB33: 0.00 | BC33: 0.00 | BD33: 0.00 | BE33: 0.00 | BF33: 0.00 | BG33: 0.00 | BH33: 0.00 | BI33: 0.00 | BJ33: 0.00 | BK33: 0.00 | BL33: 0.00 | BM33: 0.00 | BX33: За счет платы за технологическое присоединениеда
AF34: 2 | AG34: Привлеченные средства | AQ34: 0.00 | AR34: 0.00 | AS34: 0.00 | AT34: =SUM(AT35:AT37) -> 0.00 | AU34: =SUM(AU35:AU37) -> 0.00 | AV34: =SUM(AV35:AV37) -> 0.00 | AW34: =SUM(AW35:AW37) -> 0.00 | AX34: 0.00 | AY34: =SUM(AY35:AY37) -> 0.00 | AZ34: =SUM(AZ35:AZ37) -> 0.00 | BA34: 0.00 | BB34: =SUM(BB35:BB37) -> 0.00 | BC34: =SUM(BC35:BC37) -> 0.00 | BD34: 0.00 | BE34: =SUM(BE35:BE37) -> 0.00 | BF34: =SUM(BF35:BF37) -> 0.00 | BG34: 0.00 | BH34: =SUM(BH35:BH37) -> 0.00 | BI34: =SUM(BI35:BI37) -> 0.00 | BJ34: 0.00 | BK34: =SUM(BK35:BK37) -> 0.00 | BL34: =SUM(BL35:BL37) -> 0.00 | BM34: 0.00
AF35: 2.1 | AG35: Кредиты | AQ35: 0.00 | AR35: 0.00 | AS35: 0.00 | AT35: =SUMIF($BX$49:$BX$120,$BX35,AT$49:AT$120) -> 0.00 | AU35: 0.00 | AV35: 0.00 | AW35: 0.00 | AX35: 0.00 | AY35: =SUMIF($BX$49:$BX$120,$BX35,AY$49:AY$120) -> 0.00 | AZ35: 0.00 | BA35: 0.00 | BB35: =SUMIF($BX$49:$BX$120,$BX35,BB$49:BB$120) -> 0.00 | BC35: 0.00 | BD35: 0.00 | BE35: =SUMIF($BX$49:$BX$120,$BX35,BE$49:BE$120) -> 0.00 | BF35: 0.00 | BG35: 0.00 | BH35: =SUMIF($BX$49:$BX$120,$BX35,BH$49:BH$120) -> 0.00 | BI35: 0.00 | BJ35: 0.00 | BK35: =SUMIF($BX$49:$BX$120,$BX35,BK$49:BK$120) -> 0.00 | BL35: 0.00 | BM35: 0.00 | BX35: Кредитыда
AF36: 2.2 | AG36: Займы | AQ36: 0.00 | AR36: 0.00 | AS36: 0.00 | AT36: 0.00 | AU36: 0.00 | AV36: 0.00 | AW36: 0.00 | AX36: 0.00 | AY36: 0.00 | AZ36: 0.00 | BA36: 0.00 | BB36: 0.00 | BC36: 0.00 | BD36: 0.00 | BE36: 0.00 | BF36: 0.00 | BG36: 0.00 | BH36: 0.00 | BI36: 0.00 | BJ36: 0.00 | BK36: 0.00 | BL36: 0.00 | BM36: 0.00 | BX36: Займыда
AF37: 2.3 | AG37: Прочие привлеченные средства | AQ37: 0.00 | AR37: 0.00 | AS37: 0.00 | AT37: 0.00 | AU37: 0.00 | AV37: 0.00 | AW37: 0.00 | AX37: 0.00 | AY37: 0.00 | AZ37: 0.00 | BA37: 0.00 | BB37: 0.00 | BC37: 0.00 | BD37: 0.00 | BE37: 0.00 | BF37: 0.00 | BG37: 0.00 | BH37: 0.00 | BI37: 0.00 | BJ37: 0.00 | BK37: 0.00 | BL37: 0.00 | BM37: 0.00 | BX37: Прочие привлеченные средствада
AF38: 3 | AG38: Бюджетное финансирование | AQ38: 0.00 | AR38: 0.00 | AS38: 0.00 | AT38: =SUM(AT39:AT41) -> 0.00 | AU38: =SUM(AU39:AU41) -> 0.00 | AV38: =SUM(AV39:AV41) -> 0.00 | AW38: =SUM(AW39:AW41) -> 0.00 | AX38: 0.00 | AY38: =SUM(AY39:AY41) -> 0.00 | AZ38: =SUM(AZ39:AZ41) -> 0.00 | BA38: 0.00 | BB38: =SUM(BB39:BB41) -> 0.00 | BC38: =SUM(BC39:BC41) -> 0.00 | BD38: 0.00 | BE38: =SUM(BE39:BE41) -> 0.00 | BF38: =SUM(BF39:BF41) -> 0.00 | BG38: 0.00 | BH38: =SUM(BH39:BH41) -> 0.00 | BI38: =SUM(BI39:BI41) -> 0.00 | BJ38: 0.00 | BK38: =SUM(BK39:BK41) -> 0.00 | BL38: =SUM(BL39:BL41) -> 0.00 | BM38: 0.00
AF39: 3.1 | AG39: Федеральный бюджет | AQ39: 0.00 | AR39: 0.00 | AS39: 0.00 | AT39: =SUMIF($BX$49:$BX$120,$BX39,AT$49:AT$120) -> 0.00 | AU39: 0.00 | AV39: 0.00 | AW39: 0.00 | AX39: 0.00 | AY39: =SUMIF($BX$49:$BX$120,$BX39,AY$49:AY$120) -> 0.00 | AZ39: 0.00 | BA39: 0.00 | BB39: =SUMIF($BX$49:$BX$120,$BX39,BB$49:BB$120) -> 0.00 | BC39: 0.00 | BD39: 0.00 | BE39: =SUMIF($BX$49:$BX$120,$BX39,BE$49:BE$120) -> 0.00 | BF39: 0.00 | BG39: 0.00 | BH39: =SUMIF($BX$49:$BX$120,$BX39,BH$49:BH$120) -> 0.00 | BI39: 0.00 | BJ39: 0.00 | BK39: =SUMIF($BX$49:$BX$120,$BX39,BK$49:BK$120) -> 0.00 | BL39: 0.00 | BM39: 0.00 | BX39: Федеральный бюджетда
AF40: 3.2 | AG40: Бюджет субъекта РФ | AQ40: 0.00 | AR40: 0.00 | AS40: 0.00 | AT40: 0.00 | AU40: 0.00 | AV40: 0.00 | AW40: 0.00 | AX40: 0.00 | AY40: 0.00 | AZ40: 0.00 | BA40: 0.00 | BB40: 0.00 | BC40: 0.00 | BD40: 0.00 | BE40: 0.00 | BF40: 0.00 | BG40: 0.00 | BH40: 0.00 | BI40: 0.00 | BJ40: 0.00 | BK40: 0.00 | BL40: 0.00 | BM40: 0.00 | BX40: Бюджет субъекта РФда
AF41: 3.3 | AG41: Бюджет муниципального образования | AQ41: 0.00 | AR41: 0.00 | AS41: 0.00 | AT41: 0.00 | AU41: 0.00 | AV41: 0.00 | AW41: 0.00 | AX41: 0.00 | AY41: 0.00 | AZ41: 0.00 | BA41: 0.00 | BB41: 0.00 | BC41: 0.00 | BD41: 0.00 | BE41: 0.00 | BF41: 0.00 | BG41: 0.00 | BH41: 0.00 | BI41: 0.00 | BJ41: 0.00 | BK41: 0.00 | BL41: 0.00 | BM41: 0.00 | BX41: Бюджет муниципального образованияда
AF42: 4 | AG42: Прочие источники финансирования | AQ42: 0.00 | AR42: 0.00 | AS42: 0.00 | AT42: =SUM(AT43:AT44) -> 0.00 | AU42: =SUM(AU43:AU44) -> 0.00 | AV42: =SUM(AV43:AV44) -> 0.00 | AW42: =SUM(AW43:AW44) -> 0.00 | AX42: 0.00 | AY42: =SUM(AY43:AY44) -> 0.00 | AZ42: =SUM(AZ43:AZ44) -> 0.00 | BA42: 0.00 | BB42: =SUM(BB43:BB44) -> 0.00 | BC42: =SUM(BC43:BC44) -> 0.00 | BD42: 0.00 | BE42: =SUM(BE43:BE44) -> 0.00 | BF42: =SUM(BF43:BF44) -> 0.00 | BG42: 0.00 | BH42: =SUM(BH43:BH44) -> 0.00 | BI42: =SUM(BI43:BI44) -> 0.00 | BJ42: 0.00 | BK42: =SUM(BK43:BK44) -> 0.00 | BL42: =SUM(BL43:BL44) -> 0.00 | BM42: 0.00
AF43: 4.1 | AG43: Лизинг | AQ43: 0.00 | AR43: 0.00 | AS43: 0.00 | AT43: =SUMIF($BX$49:$BX$120,$BX43,AT$49:AT$120) -> 0.00 | AU43: 0.00 | AV43: 0.00 | AW43: 0.00 | AX43: 0.00 | AY43: =SUMIF($BX$49:$BX$120,$BX43,AY$49:AY$120) -> 0.00 | AZ43: =SUMIF($BX$49:$BX$120,$BX43,AZ$49:AZ$120) -> 0.00 | BA43: 0.00 | BB43: =SUMIF($BX$49:$BX$120,$BX43,BB$49:BB$120) -> 0.00 | BC43: =SUMIF($BX$49:$BX$120,$BX43,BC$49:BC$120) -> 0.00 | BD43: 0.00 | BE43: =SUMIF($BX$49:$BX$120,$BX43,BE$49:BE$120) -> 0.00 | BF43: =SUMIF($BX$49:$BX$120,$BX43,BF$49:BF$120) -> 0.00 | BG43: 0.00 | BH43: =SUMIF($BX$49:$BX$120,$BX43,BH$49:BH$120) -> 0.00 | BI43: =SUMIF($BX$49:$BX$120,$BX43,BI$49:BI$120) -> 0.00 | BJ43: 0.00 | BK43: =SUMIF($BX$49:$BX$120,$BX43,BK$49:BK$120) -> 0.00 | BL43: =SUMIF($BX$49:$BX$120,$BX43,BL$49:BL$120) -> 0.00 | BM43: 0.00 | BX43: Лизингда
AF44: 4.2 | AG44: Прочие | AQ44: 0.00 | AR44: 0.00 | AS44: 0.00 | AT44: 0.00 | AU44: 0.00 | AV44: 0.00 | AW44: 0.00 | AX44: 0.00 | AY44: =SUMIF($BX$49:$BX$120,$BX44,AY$49:AY$120) -> 0.00 | AZ44: =SUMIF($BX$49:$BX$120,$BX44,AZ$49:AZ$120) -> 0.00 | BA44: 0.00 | BB44: =SUMIF($BX$49:$BX$120,$BX44,BB$49:BB$120) -> 0.00 | BC44: =SUMIF($BX$49:$BX$120,$BX44,BC$49:BC$120) -> 0.00 | BD44: 0.00 | BE44: =SUMIF($BX$49:$BX$120,$BX44,BE$49:BE$120) -> 0.00 | BF44: =SUMIF($BX$49:$BX$120,$BX44,BF$49:BF$120) -> 0.00 | BG44: 0.00 | BH44: =SUMIF($BX$49:$BX$120,$BX44,BH$49:BH$120) -> 0.00 | BI44: =SUMIF($BX$49:$BX$120,$BX44,BI$49:BI$120) -> 0.00 | BJ44: 0.00 | BK44: =SUMIF($BX$49:$BX$120,$BX44,BK$49:BK$120) -> 0.00 | BL44: =SUMIF($BX$49:$BX$120,$BX44,BL$49:BL$120) -> 0.00 | BM44: 0.00 | BX44: Прочиеда
D47: № п/п | E47: Группа, к которой относятся мероприятия инвестиционной программы | F47: Подгруппа, к которой относятся мероприятия инвестиционной программы | G47: Наименование строек | H47: Территория оказания услуг | K47: Период реализации согласно ИП, лет | L47: Плановый год ввода в эксплуатацию / выполнения мероприятия | M47: Стадия выполнения, % | N47: № объекта | P47: Объект инфраструктуры ВС | Q47: Наименование объекта | R47: Тип объекта | S47: Адрес объекта | Z47: Территория оказания услуг | AE47: № источника | AG47: Источник финансирования | AH47: В рамках концессионного соглашения | AI47: Наименование концессионного соглашения | AJ47: Дата начала | AK47: Дата окончания | AL47: Наименование решения по КС | AM47: Тип решения по КС | AN47: № решения по КС | AO47: Дата принятия решения по КС | AP47: Внесены изменения по источникам финансирования | AQ47: Всего утверждено на весь период реализации ИП (план) | AR47: Всего утверждено на весь период реализации ИП (корректировка) | AS47: Всего утверждено на весь период реализации ИП (дельта) | AT47: Всего утверждено на предыдущий период реализации ИП | AU47: ="Размер средств, исключаемых из НВВ на " & god & " год, в связи с неисполнением ИП" -> Размер средств, исключаемых из НВВ на 2019 год, в связи с неисполнением ИП | AV47: ="Утверждено на " & god & " (план)" -> Утверждено на 2019 (план) | AW47: ="Утверждено на " & god & " (корректировка)" -> Утверждено на 2019 (корректировка) | AX47: ="Утверждено на " & god & " (дельта)" -> Утверждено на 2019 (дельта) | AY47: ="Утверждено на " & god+1 & " (план)" -> Утверждено на 2020 (план) | AZ47: ="Утверждено на " & god+1 & " (корректировка)" -> Утверждено на 2020 (корректировка) | BA47: ="Утверждено на " & god+1 & " (дельта)" -> Утверждено на 2020 (дельта) | BB47: ="Утверждено на " & god+2 & " (план)" -> Утверждено на 2021 (план) | BC47: ="Утверждено на " & god+2 & " (корректировка)" -> Утверждено на 2021 (корректировка) | BD47: ="Утверждено на " & god+2 & " (дельта)" -> Утверждено на 2021 (дельта) | BE47: ="Утверждено на " & god+3 & " (план)" -> Утверждено на 2022 (план) | BF47: ="Утверждено на " & god+3 & " (корректировка)" -> Утверждено на 2022 (корректировка) | BG47: ="Утверждено на " & god+3 & " (дельта)" -> Утверждено на 2022 (дельта) | BH47: ="Утверждено на " & god+4 & " (план)" -> Утверждено на 2023 (план) | BI47: ="Утверждено на " & god+4 & " (корректировка)" -> Утверждено на 2023 (корректировка) | BJ47: ="Утверждено на " & god+4 & " (дельта)" -> Утверждено на 2023 (дельта) | BK47: ="Утверждено на оставшийся период (план)" -> Утверждено на оставшийся период (план) | BL47: ="Утверждено на оставшийся период (корректировка)" -> Утверждено на оставшийся период (корректировка) | BM47: ="Утверждено на оставшийся период (дельта)" -> Утверждено на оставшийся период (дельта)
H48: Муниципальный район | I48: Муниципальное образование | J48: ОКТМО | S48: Муниципальный район | T48: Муниципальное образование | U48: ОКТМО | V48: Населенный пункт | W48: ОКТМО | X48: улица, проезд, проспект, переулок, и т.п. | Y48: дом, корпус, строение | Z48: Муниципальный район | AA48: Муниципальное образование | AB48: ОКТМО | AC48: Населенный пункт | AD48: ОКТМО | AV48: Всего | AW48: Всего | AX48: Всего | AY48: Всего | AZ48: Всего | BA48: Всего | BB48: Всего | BC48: Всего | BD48: Всего | BE48: Всего | BF48: Всего | BG48: Всего | BH48: Всего | BI48: Всего | BJ48: Всего
G49: Всего | AQ49: =SUMIF($BN50:$BN106,"<>1",AQ50:AQ106) -> 211,361.00 | AR49: =SUMIF($BN50:$BN106,"<>1",AR50:AR106) -> 25,672.00 | AS49: =AQ49-AR49 -> 185,689.00 | AT49: =SUMIF($BN50:$BN106,"<>1",AT50:AT106) -> 25,672.00 | AU49: =SUMIF($BN50:$BN106,"<>1",AU50:AU106) -> 0.00 | AV49: =SUMIF($BN50:$BN106,"<>1",AV50:AV106) -> 185,689.00 | AW49: =SUMIF($BN50:$BN106,"<>1",AW50:AW106) -> 0.00 | AX49: =AV49-AW49 -> 185,689.00 | AY49: =SUMIF($BN50:$BN106,"<>1",AY50:AY106) -> 0.00 | AZ49: =SUMIF($BN50:$BN106,"<>1",AZ50:AZ106) -> 0.00 | BA49: =AY49-AZ49 -> 0.00 | BB49: =SUMIF($BN50:$BN106,"<>1",BB50:BB106) -> 0.00 | BC49: =SUMIF($BN50:$BN106,"<>1",BC50:BC106) -> 0.00 | BD49: =BB49-BC49 -> 0.00 | BE49: =SUMIF($BN50:$BN106,"<>1",BE50:BE106) -> 0.00 | BF49: =SUMIF($BN50:$BN106,"<>1",BF50:BF106) -> 0.00 | BG49: =BE49-BF49 -> 0.00 | BH49: =SUMIF($BN50:$BN106,"<>1",BH50:BH106) -> 0.00 | BI49: =SUMIF($BN50:$BN106,"<>1",BI50:BI106) -> 0.00 | BJ49: =BH49-BI49 -> 0.00 | BK49: =SUMIF($BN50:$BN106,"<>1",BK50:BK106) -> 0.00 | BL49: =SUMIF($BN50:$BN106,"<>1",BL50:BL106) -> 0.00 | BM49: =BK49-BL49 -> 0.00
D50: 0
D51: 1 | E51: Реконструкция или модернизация существующих объектов водоснабжения в целях снижения уровня износа существующих объектов водоснабжения | F51: реконструкция или модернизация существующих объектов водоснабжения, за исключением сетей водоснабжения | G51: Комплексная модернизация насосной станции 3-го подъёма (шкаф контролерный, шкаф управления, уровнемер, датчик давления) | H51: Город Стерлитамак | I51: город Стерлитамак | J51: 80745000 | K51: 3 | L51: 2019 | M51: 19.80
O52: 1 | P52: да | Q52: Насосная станция 3 подъема | R52: НС | S52: Город Стерлитамак | T52: Город Стерлитамак | U52: 80745000 | V52: г Стерлитамак | W52: 80745000001 | X52: ул. Элеваторная | Y52: 86а | Z52: Город Стерлитамак | AA52: Город Стерлитамак | AB52: 80745000 | AC52: г Стерлитамак | AD52: 80745000001
AF53: 1 | AG53: Прибыль направляемая на инвестиции | AH53: нет | AP53: нет | AQ53: =SUM(AT53,AV53,AY53,BB53,BE53,BH53,BK53) -> 18,145.00 | AR53: =SUM(AT53,AW53,AZ53,BC53,BF53,BI53,BL53) -> 7,186.00 | AS53: =AQ53-AR53 -> 10,959.00 | AT53: 7,186.00 | AV53: 10,959.00 | BN53: 0 | BR53: =AG53 & BN53 -> Прибыль направляемая на инвестиции0 | BX53: =AG53&AH53 -> Прибыль направляемая на инвестициинет | BY53: 0
C54: AddI
C55: AddO
D56: 2 | E56: Строительство, реконструкция или модернизация объектов водоснабжения в целях подключения потребителей с указанием объектов водоснабжения, строительство которых финансируется за счет платы за подключение | F56: строительство новых сетей водоснабжения в целях подключения потребителей | G56: Строительство сетей для подключение объектов к водоснабжению 5 км | H56: Город Стерлитамак | I56: город Стерлитамак | J56: 80745000 | K56: 1 | L56: 2019 | M56: 0.00
O57: 1 | P57: да | Q57: Водопроводная сеть | R57: сеть | S57: Город Стерлитамак | T57: Город Стерлитамак | U57: 80745000 | V57: г Стерлитамак | W57: 80745000001 | X57: г. Стерлитамак | Y57: / | Z57: Город Стерлитамак | AA57: Город Стерлитамак | AB57: 80745000 | AC57: г Стерлитамак | AD57: 80745000001
AF58: 1 | AG58: за счет платы за технологическое присоединение | AH58: нет | AP58: нет | AQ58: =SUM(AT58,AV58,AY58,BB58,BE58,BH58,BK58) -> 23,160.00 | AR58: =SUM(AT58,AW58,AZ58,BC58,BF58,BI58,BL58) -> 0.00 | AS58: =AQ58-AR58 -> 23,160.00 | AT58: 0.00 | AV58: 23,160.00 | BN58: 0 | BR58: =AG58 & BN58 -> за счет платы за технологическое присоединение0 | BX58: =AG58&AH58 -> за счет платы за технологическое присоединениенет | BY58: 0
C59: AddI
C60: AddO
D61: 3 | E61: Мероприятия, направленные на повышение энергоэффективности в сфере водоснабжения | G61: Замена насосного агрегата НСП ул.Лесная | H61: Город Стерлитамак | I61: город Стерлитамак | J61: 80745000 | K61: 1 | L61: 2017 | M61: 100.00
O62: 1 | P62: без привязки к объекту
AF63: 1 | AG63: Прибыль направляемая на инвестиции | AH63: нет | AP63: нет | AQ63: =SUM(AT63,AV63,AY63,BB63,BE63,BH63,BK63) -> 244.00 | AR63: =SUM(AT63,AW63,AZ63,BC63,BF63,BI63,BL63) -> 244.00 | AS63: =AQ63-AR63 -> 0.00 | AT63: 244.00 | AV63: 0.00 | BN63: 0 | BR63: =AG63 & BN63 -> Прибыль направляемая на инвестиции0 | BX63: =AG63&AH63 -> Прибыль направляемая на инвестициинет | BY63: 0
C64: AddI
C65: AddO
D66: 4 | E66: Мероприятия, направленные на повышение энергоэффективности в сфере водоснабжения | G66: Внедрение ветрогенератора или микро ГЭС на источнике Берхомут | H66: Город Стерлитамак | I66: город Стерлитамак | J66: 80745000 | K66: 0 | L66: 2019 | M66: 0.00
O67: 1 | P67: без привязки к объекту
AF68: 1 | AG68: Прибыль направляемая на инвестиции | AH68: нет | AP68: нет | AQ68: =SUM(AT68,AV68,AY68,BB68,BE68,BH68,BK68) -> 0.00 | AR68: =SUM(AT68,AW68,AZ68,BC68,BF68,BI68,BL68) -> 0.00 | AS68: =AQ68-AR68 -> 0.00 | AT68: 0.00 | AV68: 0.00 | BN68: 0 | BR68: =AG68 & BN68 -> Прибыль направляемая на инвестиции0 | BX68: =AG68&AH68 -> Прибыль направляемая на инвестициинет | BY68: 0
C69: AddI
C70: AddO
D71: 5 | E71: Мероприятия, направленные на повышение энергоэффективности в сфере водоснабжения | G71: Техперевооружение первого подъёма ГНС | H71: Город Стерлитамак | I71: город Стерлитамак | J71: 80745000 | K71: 3 | L71: 2019 | M71: 20.80
O72: 1 | P72: да | Q72: Насосная станция 1 подъема | R72: НС | S72: Город Стерлитамак | T72: Город Стерлитамак | U72: 80745000 | V72: г Стерлитамак | W72: 80745000001 | X72: ул. Ольховская | Y72: 61а | Z72: Город Стерлитамак | AA72: Город Стерлитамак | AB72: 80745000 | AC72: г Стерлитамак | AD72: 80745000001
AF73: 1 | AG73: Прибыль направляемая на инвестиции | AH73: нет | AP73: нет | AQ73: =SUM(AT73,AV73,AY73,BB73,BE73,BH73,BK73) -> 1,250.00 | AR73: =SUM(AT73,AW73,AZ73,BC73,BF73,BI73,BL73) -> 780.00 | AS73: =AQ73-AR73 -> 470.00 | AT73: 780.00 | AV73: 470.00 | BN73: 0 | BR73: =AG73 & BN73 -> Прибыль направляемая на инвестиции0 | BX73: =AG73&AH73 -> Прибыль направляемая на инвестициинет | BY73: 0
C74: AddI
C75: AddO
D76: 6 | E76: Реконструкция или модернизация существующих объектов водоснабжения в целях снижения уровня износа существующих объектов водоснабжения | F76: реконструкция или модернизация существующих сетей водоснабжения | G76: Модернизация водовода от отм. 220 г.Салавата до Ашкадарского водозабора в г.Стерлитамак (протяженность участка 1,3 км) | H76: Город Стерлитамак | I76: город Стерлитамак | J76: 80745000 | K76: 2 | L76: 2018 | M76: 29.46
O77: 1 | P77: да | Q77: Водопроводная сеть | R77: сеть | S77: Город Стерлитамак | T77: Город Стерлитамак | U77: 80745000 | V77: г Стерлитамак | W77: 80745000001 | X77: г. Стерлитамак | Y77: / | Z77: Город Стерлитамак | AA77: Город Стерлитамак | AB77: 80745000 | AC77: г Стерлитамак | AD77: 80745000001
AF78: 1 | AG78: Прибыль направляемая на инвестиции | AH78: нет | AP78: нет | AQ78: =SUM(AT78,AV78,AY78,BB78,BE78,BH78,BK78) -> 17,462.00 | AR78: =SUM(AT78,AW78,AZ78,BC78,BF78,BI78,BL78) -> 17,462.00 | AS78: =AQ78-AR78 -> 0.00 | AT78: 17,462.00 | AV78: 0.00 | BN78: 0 | BR78: =AG78 & BN78 -> Прибыль направляемая на инвестиции0 | BX78: =AG78&AH78 -> Прибыль направляемая на инвестициинет | BY78: 0
C79: AddI
C80: AddO
D81: 7 | E81: Строительство, реконструкция или модернизация объектов водоснабжения в целях подключения потребителей с указанием объектов водоснабжения, строительство которых финансируется за счет платы за подключение | F81: строительство новых сетей водоснабжения в целях подключения потребителей | G81: Проектирование и строительство сетей водоснабжения мкрн.№2,3 «Прибрежный» I, Ду 300 протяжённостью 3,68 км | H81: Город Стерлитамак | I81: город Стерлитамак | J81: 80745000 | K81: 1 | L81: 2019 | M81: 0.21
O82: 1 | P82: да | Q82: Водопроводная сеть | R82: сеть | S82: Город Стерлитамак | T82: Город Стерлитамак | U82: 80745000 | V82: г Стерлитамак | W82: 80745000001 | X82: г. Стерлитамак | Y82: / | Z82: Город Стерлитамак | AA82: Город Стерлитамак | AB82: 80745000 | AC82: г Стерлитамак | AD82: 80745000001
AF83: 1 | AG83: за счет платы за технологическое присоединение | AH83: нет | AP83: нет | AQ83: =SUM(AT83,AV83,AY83,BB83,BE83,BH83,BK83) -> 45,100.00 | AR83: =SUM(AT83,AW83,AZ83,BC83,BF83,BI83,BL83) -> 0.00 | AS83: =AQ83-AR83 -> 45,100.00 | AT83: 0.00 | AV83: 45,100.00 | BN83: 0 | BR83: =AG83 & BN83 -> за счет платы за технологическое присоединение0 | BX83: =AG83&AH83 -> за счет платы за технологическое присоединениенет | BY83: 0
C84: AddI
C85: AddO
D86: 8 | E86: Строительство, реконструкция или модернизация объектов водоснабжения в целях подключения потребителей с указанием объектов водоснабжения, строительство которых финансируется за счет платы за подключение | F86: строительство новых сетей водоснабжения в целях подключения потребителей | G86: Строительство сетей водоснабжения район Заашкадарье, ул.С.Лазо и ул. Ясная , Ду100,Ду 150 протяжённостью 3,7 км | H86: Город Стерлитамак | I86: город Стерлитамак | J86: 80745000 | K86: 1 | L86: 2019 | M86: 0.00
O87: 1 | P87: да | Q87: Водопроводная сеть | R87: сеть | S87: Город Стерлитамак | T87: Город Стерлитамак | U87: 80745000 | V87: г Стерлитамак | W87: 80745000001 | X87: г. Стерлитамак | Y87: / | Z87: Город Стерлитамак | AA87: Город Стерлитамак | AB87: 80745000 | AC87: г Стерлитамак | AD87: 80745000001
AF88: 1 | AG88: за счет платы за технологическое присоединение | AH88: нет | AP88: нет | AQ88: =SUM(AT88,AV88,AY88,BB88,BE88,BH88,BK88) -> 21,400.00 | AR88: =SUM(AT88,AW88,AZ88,BC88,BF88,BI88,BL88) -> 0.00 | AS88: =AQ88-AR88 -> 21,400.00 | AT88: 0.00 | AV88: 21,400.00 | BN88: 0 | BR88: =AG88 & BN88 -> за счет платы за технологическое присоединение0 | BX88: =AG88&AH88 -> за счет платы за технологическое присоединениенет | BY88: 0
C89: AddI
C90: AddO
D91: 9 | E91: Строительство, реконструкция или модернизация объектов водоснабжения в целях подключения потребителей с указанием объектов водоснабжения, строительство которых финансируется за счет платы за подключение | F91: строительство новых сетей водоснабжения в целях подключения потребителей | G91: 6, 44 км | H91: Город Стерлитамак | I91: город Стерлитамак | J91: 80745000 | K91: 1 | L91: 2019 | M91: 0.00
O92: 1 | P92: да | Q92: Водопроводная сеть | R92: сеть | S92: Город Стерлитамак | T92: Город Стерлитамак | U92: 80745000 | V92: г Стерлитамак | W92: 80745000001 | X92: г. Стерлитамак | Y92: / | Z92: Город Стерлитамак | AA92: Город Стерлитамак | AB92: 80745000 | AC92: г Стерлитамак | AD92: 80745000001
AF93: 1 | AG93: за счет платы за технологическое присоединение | AH93: нет | AP93: нет | AQ93: =SUM(AT93,AV93,AY93,BB93,BE93,BH93,BK93) -> 74,200.00 | AR93: =SUM(AT93,AW93,AZ93,BC93,BF93,BI93,BL93) -> 0.00 | AS93: =AQ93-AR93 -> 74,200.00 | AT93: 0.00 | AV93: 74,200.00 | BN93: 0 | BR93: =AG93 & BN93 -> за счет платы за технологическое присоединение0 | BX93: =AG93&AH93 -> за счет платы за технологическое присоединениенет | BY93: 0
C94: AddI
C95: AddO
D96: 10 | E96: Строительство, реконструкция или модернизация объектов водоснабжения в целях подключения потребителей с указанием объектов водоснабжения, строительство которых финансируется за счет платы за подключение | F96: строительство новых сетей водоснабжения в целях подключения потребителей | G96: Проектирование строительства сетей водоснабжения, в мкрн. «Радужный» | H96: Город Стерлитамак | I96: город Стерлитамак | J96: 80745000 | K96: 1 | L96: 2019 | M96: 0.00
O97: 1 | P97: да | Q97: Водопроводная сеть | R97: сеть | S97: Город Стерлитамак | T97: Город Стерлитамак | U97: 80745000 | V97: г Стерлитамак | W97: 80745000001 | X97: г. Стерлитамак | Y97: / | Z97: Город Стерлитамак | AA97: Город Стерлитамак | AB97: 80745000 | AC97: г Стерлитамак | AD97: 80745000001
AF98: 1 | AG98: за счет платы за технологическое присоединение | AH98: нет | AP98: нет | AQ98: =SUM(AT98,AV98,AY98,BB98,BE98,BH98,BK98) -> 4,500.00 | AR98: =SUM(AT98,AW98,AZ98,BC98,BF98,BI98,BL98) -> 0.00 | AS98: =AQ98-AR98 -> 4,500.00 | AT98: 0.00 | AV98: 4,500.00 | BN98: 0 | BR98: =AG98 & BN98 -> за счет платы за технологическое присоединение0 | BX98: =AG98&AH98 -> за счет платы за технологическое присоединениенет | BY98: 0
C99: AddI
C100: AddO
D101: 11 | E101: Мероприятия, направленные на повышение энергоэффективности в сфере водоснабжения | G101: Мероприятия по защите централизованных систем водоснабжения и их отдельных объектов от угроз техногенного, природного характера и террористических актов, по предотвращению возникновения аварийных ситуаций, снижению риска и смягчению последствий чрезвычайных ситуаций, в том числе замена освещения, установка видеонаблюдения и охранной сигнализации по периметру объекта | H101: Город Стерлитамак | I101: город Стерлитамак | J101: 80745000 | K101: 1 | L101: 2019 | M101: 0.00
O102: 1 | P102: без привязки к объекту
AF103: 1 | AG103: Прибыль направляемая на инвестиции | AH103: нет | AP103: нет | AQ103: =SUM(AT103,AV103,AY103,BB103,BE103,BH103,BK103) -> 5,900.00 | AR103: =SUM(AT103,AW103,AZ103,BC103,BF103,BI103,BL103) -> 0.00 | AS103: =AQ103-AR103 -> 5,900.00 | AT103: 0.00 | AV103: 5,900.00 | BN103: 0 | BR103: =AG103 & BN103 -> Прибыль направляемая на инвестиции0 | BX103: =AG103&AH103 -> Прибыль направляемая на инвестициинет | BY103: 0
C104: AddI
C105: AddO
D109: № п/п | E109: Группа, к которой относятся мероприятия инвестиционной программы | F109: Подгруппа, к которой относятся мероприятия инвестиционной программы | G109: Наименование строек | H109: Территория оказания услуг | K109: Период реализации согласно ИП, лет | L109: Плановый год ввода в эксплуатацию / выполнения мероприятия | M109: Стадия выполнения, % | N109: № объекта | P109: Объект инфраструктуры ВС | Q109: Наименование объекта | R109: Тип объекта | S109: Адрес объекта | Z109: Территория оказания услуг | AE109: № источника | AG109: Источник финансирования | AH109: В рамках концессионного соглашения | AI109: Наименование концессионного соглашения | AJ109: Дата начала | AK109: Дата окончания | AL109: Наименование решения по КС | AM109: Тип решения по КС | AN109: № решения по КС | AO109: Дата принятия решения по КС | AP109: Внесены изменения по источникам финансирования | AQ109: Всего утверждено на весь период реализации ИП (план) | AR109: Всего утверждено на весь период реализации ИП (корректировка) | AS109: Всего утверждено на весь период реализации ИП (дельта) | AT109: Всего утверждено на предыдущий период реализации ИП | AU109: ="Размер средств, исключаемых из НВВ на " & god & " год, в связи с неисполнением ИП" -> Размер средств, исключаемых из НВВ на 2019 год, в связи с неисполнением ИП | AV109: ="Утверждено на " & god & " (план)" -> Утверждено на 2019 (план) | AW109: ="Утверждено на " & god & " (корректировка)" -> Утверждено на 2019 (корректировка) | AX109: ="Утверждено на " & god & " (дельта)" -> Утверждено на 2019 (дельта) | AY109: ="Утверждено на " & god+1 & " (план)" -> Утверждено на 2020 (план) | AZ109: ="Утверждено на " & god+1 & " (корректировка)" -> Утверждено на 2020 (корректировка) | BA109: ="Утверждено на " & god+1 & " (дельта)" -> Утверждено на 2020 (дельта) | BB109: ="Утверждено на " & god+2 & " (план)" -> Утверждено на 2021 (план) | BC109: ="Утверждено на " & god+2 & " (корректировка)" -> Утверждено на 2021 (корректировка) | BD109: ="Утверждено на " & god+2 & " (дельта)" -> Утверждено на 2021 (дельта) | BE109: ="Утверждено на " & god+3 & " (план)" -> Утверждено на 2022 (план) | BF109: ="Утверждено на " & god+3 & " (корректировка)" -> Утверждено на 2022 (корректировка) | BG109: ="Утверждено на " & god+3 & " (дельта)" -> Утверждено на 2022 (дельта) | BH109: ="Утверждено на " & god+4 & " (план)" -> Утверждено на 2023 (план) | BI109: ="Утверждено на " & god+4 & " (корректировка)" -> Утверждено на 2023 (корректировка) | BJ109: ="Утверждено на " & god+4 & " (дельта)" -> Утверждено на 2023 (дельта) | BK109: ="Утверждено на оставшийся период (план)" -> Утверждено на оставшийся период (план) | BL109: ="Утверждено на оставшийся период (корректировка)" -> Утверждено на оставшийся период (корректировка) | BM109: ="Утверждено на оставшийся период (дельта)" -> Утверждено на оставшийся период (дельта)
H110: Муниципальный район | I110: Муниципальное образование | J110: ОКТМО | S110: Муниципальный район | T110: Муниципальное образование | U110: ОКТМО | V110: Населенный пункт | W110: ОКТМО | X110: улица, проезд, проспект, переулок, и т.п. | Y110: дом, корпус, строение | Z110: Муниципальный район | AA110: Муниципальное образование | AB110: ОКТМО | AC110: Населенный пункт | AD110: ОКТМО | AV110: Всего | AW110: Всего | AX110: Всего | AY110: Всего | AZ110: Всего | BA110: Всего | BB110: Всего | BC110: Всего | BD110: Всего | BE110: Всего | BF110: Всего | BG110: Всего | BH110: Всего | BI110: Всего | BJ110: Всего
G111: Всего | AQ111: =SUMIF($BN112:$BN113,"<>1",AQ112:AQ113) -> 0.00 | AR111: =SUMIF($BN112:$BN113,"<>1",AR112:AR113) -> 0.00 | AS111: =AQ111-AR111 -> 0.00 | AT111: =SUMIF($BN112:$BN113,"<>1",AT112:AT113) -> 0.00 | AU111: =SUMIF($BN112:$BN113,"<>1",AU112:AU113) -> 0.00 | AV111: =SUMIF($BN112:$BN113,"<>1",AV112:AV113) -> 0.00 | AW111: =SUMIF($BN112:$BN113,"<>1",AW112:AW113) -> 0.00 | AX111: =AV111-AW111 -> 0.00 | AY111: =SUMIF($BN112:$BN113,"<>1",AY112:AY113) -> 0.00 | AZ111: =SUMIF($BN112:$BN113,"<>1",AZ112:AZ113) -> 0.00 | BA111: =AY111-AZ111 -> 0.00 | BB111: =SUMIF($BN112:$BN113,"<>1",BB112:BB113) -> 0.00 | BC111: =SUMIF($BN112:$BN113,"<>1",BC112:BC113) -> 0.00 | BD111: =BB111-BC111 -> 0.00 | BE111: =SUMIF($BN112:$BN113,"<>1",BE112:BE113) -> 0.00 | BF111: =SUMIF($BN112:$BN113,"<>1",BF112:BF113) -> 0.00 | BG111: =BE111-BF111 -> 0.00 | BH111: =SUMIF($BN112:$BN113,"<>1",BH112:BH113) -> 0.00 | BI111: =SUMIF($BN112:$BN113,"<>1",BI112:BI113) -> 0.00 | BJ111: =BH111-BI111 -> 0.00 | BK111: =SUMIF($BN112:$BN113,"<>1",BK112:BK113) -> 0.00 | BL111: =SUMIF($BN112:$BN113,"<>1",BL112:BL113) -> 0.00 | BM111: =BK111-BL111 -> 0.00
D112: 0
D116: № п/п | E116: Группа, к которой относятся мероприятия инвестиционной программы | F116: Подгруппа, к которой относятся мероприятия инвестиционной программы | G116: Наименование строек | H116: Территория оказания услуг | K116: Период реализации согласно ИП, лет | L116: Плановый год ввода в эксплуатацию / выполнения мероприятия | M116: Стадия выполнения, % | N116: № объекта | P116: Объект инфраструктуры ВС | Q116: Наименование объекта | R116: Тип объекта | S116: Адрес объекта | Z116: Территория оказания услуг | AE116: № источника | AG116: Источник финансирования | AH116: В рамках концессионного соглашения | AI116: Наименование концессионного соглашения | AJ116: Дата начала | AK116: Дата окончания | AL116: Наименование решения по КС | AM116: Тип решения по КС | AN116: № решения по КС | AO116: Дата принятия решения по КС | AP116: Внесены изменения по источникам финансирования | AQ116: Всего утверждено на весь период реализации ИП (план) | AR116: Всего утверждено на весь период реализации ИП (корректировка) | AS116: Всего утверждено на весь период реализации ИП (дельта) | AT116: Всего утверждено на предыдущий период реализации ИП | AU116: ="Размер средств, исключаемых из НВВ на " & god & " год, в связи с неисполнением ИП" -> Размер средств, исключаемых из НВВ на 2019 год, в связи с неисполнением ИП | AV116: ="Утверждено на " & god & " (план)" -> Утверждено на 2019 (план) | AW116: ="Утверждено на " & god & " (корректировка)" -> Утверждено на 2019 (корректировка) | AX116: ="Утверждено на " & god & " (дельта)" -> Утверждено на 2019 (дельта) | AY116: ="Утверждено на " & god+1 & " (план)" -> Утверждено на 2020 (план) | AZ116: ="Утверждено на " & god+1 & " (корректировка)" -> Утверждено на 2020 (корректировка) | BA116: ="Утверждено на " & god+1 & " (дельта)" -> Утверждено на 2020 (дельта) | BB116: ="Утверждено на " & god+2 & " (план)" -> Утверждено на 2021 (план) | BC116: ="Утверждено на " & god+2 & " (корректировка)" -> Утверждено на 2021 (корректировка) | BD116: ="Утверждено на " & god+2 & " (дельта)" -> Утверждено на 2021 (дельта) | BE116: ="Утверждено на " & god+3 & " (план)" -> Утверждено на 2022 (план) | BF116: ="Утверждено на " & god+3 & " (корректировка)" -> Утверждено на 2022 (корректировка) | BG116: ="Утверждено на " & god+3 & " (дельта)" -> Утверждено на 2022 (дельта) | BH116: ="Утверждено на " & god+4 & " (план)" -> Утверждено на 2023 (план) | BI116: ="Утверждено на " & god+4 & " (корректировка)" -> Утверждено на 2023 (корректировка) | BJ116: ="Утверждено на " & god+4 & " (дельта)" -> Утверждено на 2023 (дельта) | BK116: ="Утверждено на оставшийся период (план)" -> Утверждено на оставшийся период (план) | BL116: ="Утверждено на оставшийся период (корректировка)" -> Утверждено на оставшийся период (корректировка) | BM116: ="Утверждено на оставшийся период (дельта)" -> Утверждено на оставшийся период (дельта)
H117: Муниципальный район | I117: Муниципальное образование | J117: ОКТМО | S117: Муниципальный район | T117: Муниципальное образование | U117: ОКТМО | V117: Населенный пункт | W117: ОКТМО | X117: улица, проезд, проспект, переулок, и т.п. | Y117: дом, корпус, строение | Z117: Муниципальный район | AA117: Муниципальное образование | AB117: ОКТМО | AC117: Населенный пункт | AD117: ОКТМО | AV117: Всего | AW117: Всего | AX117: Всего | AY117: Всего | AZ117: Всего | BA117: Всего | BB117: Всего | BC117: Всего | BD117: Всего | BE117: Всего | BF117: Всего | BG117: Всего | BH117: Всего | BI117: Всего | BJ117: Всего
G118: Всего | AQ118: =SUMIF($BN119:$BN120,"<>1",AQ119:AQ120) -> 0.00 | AR118: =SUMIF($BN119:$BN120,"<>1",AR119:AR120) -> 0.00 | AS118: =AQ118-AR118 -> 0.00 | AT118: =SUMIF($BN119:$BN120,"<>1",AT119:AT120) -> 0.00 | AU118: =SUMIF($BN119:$BN120,"<>1",AU119:AU120) -> 0.00 | AV118: =SUMIF($BN119:$BN120,"<>1",AV119:AV120) -> 0.00 | AW118: =SUMIF($BN119:$BN120,"<>1",AW119:AW120) -> 0.00 | AX118: =AV118-AW118 -> 0.00 | AY118: =SUMIF($BN119:$BN120,"<>1",AY119:AY120) -> 0.00 | AZ118: =SUMIF($BN119:$BN120,"<>1",AZ119:AZ120) -> 0.00 | BA118: =AY118-AZ118 -> 0.00 | BB118: =SUMIF($BN119:$BN120,"<>1",BB119:BB120) -> 0.00 | BC118: =SUMIF($BN119:$BN120,"<>1",BC119:BC120) -> 0.00 | BD118: =BB118-BC118 -> 0.00 | BE118: =SUMIF($BN119:$BN120,"<>1",BE119:BE120) -> 0.00 | BF118: =SUMIF($BN119:$BN120,"<>1",BF119:BF120) -> 0.00 | BG118: =BE118-BF118 -> 0.00 | BH118: =SUMIF($BN119:$BN120,"<>1",BH119:BH120) -> 0.00 | BI118: =SUMIF($BN119:$BN120,"<>1",BI119:BI120) -> 0.00 | BJ118: =BH118-BI118 -> 0.00 | BK118: =SUMIF($BN119:$BN120,"<>1",BK119:BK120) -> 0.00 | BL118: =SUMIF($BN119:$BN120,"<>1",BL119:BL120) -> 0.00 | BM118: =BK118-BL118 -> 0.00
D119: 0

Sheet Комментарии
D4: Комментарии
D5: =region_name & " " & org -> Республика Башкортостан АО "Водоснабжающая компания"
D7: № п/п | E7: Комментарий
D8: 0
E9: Добавить комментарий

Sheet Проверка
B2: Результат проверки
B4: Ссылка | C4: Причина | D4: Статус
B5: ИП!AW12 | C5: Cумма по источникам финансирования в строке "Всего" отклоняется от указанной в мониторинге принятых тарифных решений на величину -100%! | D5: Предупреждение

Sheet AllSheetsInThisWorkbook (hidden)
A1: Расчетные листы | B1: Скрытые листы
A2: Инструкция | B2: AllSheetsInThisWorkbook
A3: Лог обновления | B3: TEHSHEET
A4: Титульный | B4: et_union
A5: Территории ИП | B5: mod_00
A6: ИП | B6: mod_01
A7: Комментарии | B7: mod_02
A8: Проверка | B8: mod_com
B9: modProv
B10: modFill
B11: modHTTP
B12: modReestr
B13: modfrmReestr
B14: modInstruction
B15: modUpdTemplMain
B16: modfrmCheckUpdates
B17: modfrmRegion
B18: REESTR_MO
B19: REESTR_ORG
B20: REESTR_IP
B21: REESTR_IP_2018
B22: REESTR_TER
B23: REESTR_CNCSN
B24: REESTR_OBJECT
B25: REESTR_STOP_REASON
B26: modClassifierValidate
B27: modCheckCyan
B28: modHyp

Sheet TEHSHEET (hidden)
A1: REGION | B1: ip_list | C1: begin_year_list | D1: year_list | E1: all_year_list | F1: month_list | G1: logical | H1: ist_fin_list | I1: group_list | J1: podgroup_1_list | K1: podgroup_3_list | L1: podgroup_5_list | M1: spr_pok_kach | N1: spr_ip_end_list | O1: spr_ip_type_list | Q1: spr_ip_type_list_c | R1: spr_type_report | S1: spr_ks | U1: spr_type
A2: Алтайский край | C2: 2017 | D2: 2017 | E2: 2003 | F2: Январь | G2: да | H2: Прибыль направляемая на инвестиции | I2: Строительство, реконструкция или модернизация объектов водоснабжения в целях подключения потребителей с указанием объектов водоснабжения, строительство которых финансируется за счет платы за подключение | J2: строительство новых сетей водоснабжения в целях подключения потребителей | K2: реконструкция или модернизация существующих сетей водоснабжения | L2: вывод из эксплуатации, консервация и демонтаж сетей водоснабжения | M2: по организации | N2: прекращение финансирования | O2: новая ИП | P2: 1 | Q2: корректировка наименования ИП | R2: план | S2: ИП содержит только мероприятия, реализуемые в рамках КС | U2: Водоснабжение
A3: Амурская область | D3: 2018 | E3: 2004 | F3: Февраль | G3: нет | H3: Амортизационные отчисления | I3: Строительство новых объектов водоснабжения, не связанных с подключением (технологическим присоединением) новых потребителей, в том числе строительство новых сетей водоснабжения | J3: строительство иных объектов водоснабжения, за исключением сетей водоснабжения в целях подключения потребителей | K3: реконструкция или модернизация существующих объектов водоснабжения, за исключением сетей водоснабжения | L3: вывод из эксплуатации, консервация и демонтаж иных объектов водоснабжения, за исключением сетей водоснабжения | M3: по отдельным мероприятиям | N3: выполнение ИП ранее заявленного срока | O3: продолжение ИП | P3: 2 | Q3: корректировка периода ИП | R3: корректировка | S3: ИП, в том числе содержит мероприятия, реализуемые в рамках КС
A4: Архангельская область | D4: 2019 | E4: 2005 | F4: Март | H4: Прочие собственные средства | I4: Реконструкция или модернизация существующих объектов водоснабжения в целях снижения уровня износа существующих объектов водоснабжения | J4: увеличение пропускной способности существующих сетей водоснабжения в целях подключения потребителей | M4: по организации и мероприятиям | O4: прекращение действия ИП | P4: 3 | Q4: корректировка данных организации | S4: ИП не содержит мероприятия, реализуемые в рамках КС
A5: Астраханская область | D5: 2020 | E5: 2006 | F5: Апрель | H5: За счет платы за технологическое присоединение | I5: Мероприятия, направленные на повышение экологической эффективности | J5: увеличение мощности и производительности существующих объектов водоснабжения, за исключением сетей водоснабжения в целях подключения потребителей | P5: 4 | Q5: корректировка территорий, на которых утверждена ИП
A6: Белгородская область | D6: 2021 | E6: 2007 | F6: Май | H6: Кредиты | I6: Вывод из эксплуатации, консервация и демонтаж объектов водоснабжения | P6: 5 | Q6: корректировка мероприятий
A7: Брянская область | D7: 2022 | E7: 2008 | F7: Июнь | H7: Займы | I7: Мероприятия, направленные на повышение энергоэффективности в сфере водоснабжения | P7: 6 | Q7: корректировка объектов инфраструктуры
A8: Владимирская область | D8: 2023 | E8: 2009 | F8: Июль | H8: Прочие привлеченные средства | P8: 7 | Q8: корректировка финансирования ИП
A9: Волгоградская область | D9: 2024 | E9: 2010 | F9: Август | H9: Федеральный бюджет | P9: 8 | Q9: прекращение действия ИП
A10: Вологодская область | D10: 2025 | E10: 2011 | F10: Сентябрь | H10: Бюджет субъекта РФ
A11: Воронежская область | D11: 2026 | E11: 2012 | F11: Октябрь | H11: Бюджет муниципального образования
A12: г.Байконур | D12: 2027 | E12: 2013 | F12: Ноябрь | H12: Лизинг
A13: г. Москва | D13: 2028 | E13: 2014 | F13: Декабрь | H13: Прочие
A14: г.Санкт-Петербург | D14: 2029 | E14: 2015
A15: г.Севастополь | D15: 2030 | E15: 2016
A16: Еврейская автономная область | D16: 2031 | E16: 2017
A17: Забайкальский край | D17: 2032 | E17: 2018
A18: Ивановская область | D18: 2033 | E18: 2019
A19: Иркутская область | E19: 2020
A20: Кабардино-Балкарская республика | E20: 2021
A21: Калининградская область | E21: 2022
A22: Калужская область | E22: 2023
A23: Камчатский край | E23: 2024
A24: Карачаево-Черкесская республика | E24: 2025
A25: Кемеровская область | E25: 2026
A26: Кировская область | E26: 2027
A27: Костромская область | E27: 2028
A28: Краснодарский край | E28: 2029
A29: Красноярский край | E29: 2030
A30: Курганская область | E30: 2031
A31: Курская область | E31: 2032
A32: Ленинградская область | E32: 2033
A33: Липецкая область
A34: Магаданская область
A35: Московская область
A36: Мурманская область
A37: Ненецкий автономный округ
A38: Нижегородская область
A39: Новгородская область
A40: Новосибирская область
A41: Омская область
A42: Оренбургская область
A43: Орловская область
A44: Пензенская область
A45: Пермский край
A46: Приморский край
A47: Псковская область
A48: Республика Адыгея
A49: Республика Алтай
A50: Республика Башкортостан
A51: Республика Бурятия
A52: Республика Дагестан
A53: Республика Ингушетия
A54: Республика Калмыкия
A55: Республика Карелия
A56: Республика Коми
A57: Республика Крым
A58: Республика Марий Эл
A59: Республика Мордовия
A60: Республика Саха (Якутия)
A61: Республика Северная Осетия-Алания
A62: Республика Татарстан
A63: Республика Тыва
A64: Республика Хакасия
A65: Ростовская область
A66: Рязанская область
A67: Самарская область
A68: Саратовская область
A69: Сахалинская область
A70: Свердловская область
A71: Смоленская область
A72: Ставропольский край
A73: Тамбовская область
A74: Тверская область
A75: Томская область
A76: Тульская область
A77: Тюменская область
A78: Удмуртская республика
A79: Ульяновская область
A80: Хабаровский край
A81: Ханты-Мансийский автономный округ
A82: Челябинская область
A83: Чеченская республика
A84: Чувашская республика
A85: Чукотский автономный округ
A86: Ямало-Ненецкий автономный округ
A87: Ярославская область

Sheet et_union (hidden)
A1: et_LisComm
A3: et_ws_01_m
O5: 1 | AF5: 0 | AG5: Данные по источникам финансирования для объекта инфраструктуры или мероприятия в целом
AF6: 1 | AH6: нет | AP6: нет | AQ6: =SUM(AT6,AV6,AY6,BB6,BE6,BH6,BK6) -> 0.00 | AR6: =SUM(AT6,AW6,AZ6,BC6,BF6,BI6,BL6) -> 0.00 | AS6: =AQ6-AR6 -> 0.00 | AX6: =AV6-AW6 -> 0.00 | BA6: =AY6-AZ6 -> 0.00 | BD6: =BB6-BC6 -> 0.00 | BG6: =BE6-BF6 -> 0.00 | BJ6: =BH6-BI6 -> 0.00 | BM6: =BK6-BL6 -> 0.00 | BN6: 0 | BR6: =AG6 & BN6 -> 0 | BX6: =AG6&AH6 -> нет
AE7: if | AG7: Добавить ист. фин.
N8: obj | P8: Добавить объект инфраструктуры
A9: et_ws_01_obj
P10: да | AF10: 0 | AG10: Данные по источникам финансирования для объекта инфраструктуры или мероприятия в целом
AF11: 1 | AH11: нет | AP11: нет | AQ11: =SUM(AT11,AV11,AY11,BB11,BE11,BH11,BK11) -> 0.00 | AR11: =SUM(AT11,AW11,AZ11,BC11,BF11,BI11,BL11) -> 0.00 | AS11: =AQ11-AR11 -> 0.00 | AX11: =AV11-AW11 -> 0.00 | BA11: =AY11-AZ11 -> 0.00 | BD11: =BB11-BC11 -> 0.00 | BG11: =BE11-BF11 -> 0.00 | BJ11: =BH11-BI11 -> 0.00 | BM11: =BK11-BL11 -> 0.00 | BN11: 0 | BR11: =AG11 & BN11 -> 0 | BX11: =AG11&AH11 -> нет
AE12: if | AG12: Добавить ист. фин.
A13: et_ws_01_ifin
AH14: нет | AP14: нет | AQ14: =SUM(AT14,AV14,AY14,BB14,BE14,BH14,BK14) -> 0.00 | AR14: =SUM(AT14,AW14,AZ14,BC14,BF14,BI14,BL14) -> 0.00 | AS14: =AQ14-AR14 -> 0.00 | AX14: =AV14-AW14 -> 0.00 | BA14: =AY14-AZ14 -> 0.00 | BD14: =BB14-BC14 -> 0.00 | BG14: =BE14-BF14 -> 0.00 | BJ14: =BH14-BI14 -> 0.00 | BM14: =BK14-BL14 -> 0.00 | BN14: 0 | BR14: =AG14 & BN14 -> 0 | BX14: =AG14&AH14 -> нет
A15: et_ws_01_ifin_lock
AP16: нет | AQ16: =SUM(AT16,AV16,AY16,BB16,BE16,BH16,BK16) -> 0.00 | AR16: =SUM(AT16,AW16,AZ16,BC16,BF16,BI16,BL16) -> 0.00 | AS16: =AQ16-AR16 -> 0.00 | AX16: =AV16-AW16 -> 0.00 | BA16: =AY16-AZ16 -> 0.00 | BD16: =BB16-BC16 -> 0.00 | BG16: =BE16-BF16 -> 0.00 | BJ16: =BH16-BI16 -> 0.00 | BM16: =BK16-BL16 -> 0.00 | BN16: 0 | BR16: =AG16 & BN16 -> 0 | BX16: =AG16&AH16 -> 
A17: et_com
A19: et_ws_02_1
H20: =IFERROR(IF(LEN(G20)=0,"",VLOOKUP(G20,OKTMO_TYPE_LIST,2,FALSE)),"МО отсутствует") ->  | J20: Поиск данных в ручном режиме
D23: № п/п | E23: Группа, к которой относятся мероприятия инвестиционной программы | F23: Подгруппа, к которой относятся мероприятия инвестиционной программы | G23: Наименование строек | H23: Территория оказания услуг | K23: Период реализации согласно ИП, лет | L23: Плановый год ввода в эксплуатацию / выполнения мероприятия | M23: Стадия выполнения, % | O23: № объекта | P23: Объект инфраструктуры ТЭ | Q23: Наименование объекта | R23: Тип объекта | S23: Адрес объекта | Z23: Территория оказания услуг | AF23: № источника | AG23: Источник финансирования | AH23: В рамках концессионного соглашения | AI23: Наименование концессионного соглашения | AJ23: Дата начала | AK23: Дата окончания | AL23: Наименование решения по КС | AM23: Тип решения по КС | AN23: № решения по КС | AO23: Дата принятия решения по КС | AP23: Внесены изменения по источникам финансирования | AQ23: Всего утверждено на весь период реализации ИП (план) | AR23: Всего утверждено на весь период реализации ИП (уточненный план) | AS23: Всего утверждено на весь период реализации ИП (дельта) | AT23: Всего утверждено на предыдущий период реализации ИП | AU23: ="Размер средств, исключаемых из НВВ на " & god & " год, в связи с неисполнением ИП" -> Размер средств, исключаемых из НВВ на 2019 год, в связи с неисполнением ИП | AV23: ="Утверждено на " & god & " (План)" -> Утверждено на 2019 (План) | AW23: ="Утверждено на " & god & " (Уточненный план)" -> Утверждено на 2019 (Уточненный план) | AX23: ="Утверждено на " & god & " (Дельта)" -> Утверждено на 2019 (Дельта) | AY23: ="Утверждено на " & god+1 & " (План)" -> Утверждено на 2020 (План) | AZ23: ="Утверждено на " & god+1 & " (Уточненный план)" -> Утверждено на 2020 (Уточненный план) | BA23: ="Утверждено на " & god+1 & " (Дельта)" -> Утверждено на 2020 (Дельта) | BB23: ="Утверждено на " & god+2 & " (План)" -> Утверждено на 2021 (План) | BC23: ="Утверждено на " & god+2 & " (Уточненный план)" -> Утверждено на 2021 (Уточненный план) | BD23: ="Утверждено на " & god+2 & " (Дельта)" -> Утверждено на 2021 (Дельта) | BE23: ="Утверждено на " & god+3 & " (План)" -> Утверждено на 2022 (План) | BF23: ="Утверждено на " & god+3 & " (Уточненный план)" -> Утверждено на 2022 (Уточненный план) | BG23: ="Утверждено на " & god+3 & " (Дельта)" -> Утверждено на 2022 (Дельта) | BH23: ="Утверждено на " & god+4 & " (План)" -> Утверждено на 2023 (План) | BI23: ="Утверждено на " & god+4 & " (Уточненный план)" -> Утверждено на 2023 (Уточненный план) | BJ23: ="Утверждено на " & god+4 & " (Дельта)" -> Утверждено на 2023 (Дельта) | BK23: ="Утверждено на оставшийся период (План)" -> Утверждено на оставшийся период (План) | BL23: ="Утверждено на оставшийся период (Уточненный план)" -> Утверждено на оставшийся период (Уточненный план) | BM23: ="Утверждено на оставшийся период (Дельта)" -> Утверждено на оставшийся период (Дельта)
H24: Муниципальный район | I24: Муниципальное образование | J24: ОКТМО | S24: Муниципальный район | T24: Муниципальное образование | U24: ОКТМО | V24: Населенный пункт | W24: ОКТМО | X24: улица, проезд, проспект, переулок, и т.п. | Y24: дом, корпус, строение | Z24: Муниципальный район | AA24: Муниципальное образование | AB24: ОКТМО | AC24: Населенный пункт | AD24: ОКТМО | AV24: Всего | AW24: Всего | AX24: Всего | AY24: Всего | AZ24: Всего | BA24: Всего | BB24: Всего | BC24: Всего | BD24: Всего | BE24: Всего | BF24: Всего | BG24: Всего | BH24: Всего | BI24: Всего | BJ24: Всего
A27: et_ws_01_m_lock
AF29: 0 | AG29: Данные по источникам финансирования для объекта инфраструктуры или мероприятия в целом
AQ30: =SUM(AT30,AV30,AY30,BB30,BE30,BH30,BK30) -> 0.00 | AR30: =SUM(AT30,AW30,AZ30,BC30,BF30,BI30,BL30) -> 0.00 | AS30: =AQ30-AR30 -> 0.00 | AX30: =AV30-AW30 -> 0.00 | BA30: =AY30-AZ30 -> 0.00 | BD30: =BB30-BC30 -> 0.00 | BG30: =BE30-BF30 -> 0.00 | BJ30: =BH30-BI30 -> 0.00 | BM30: =BK30-BL30 -> 0.00 | BN30: 0 | BR30: =AG30 & BN30 -> 0 | BX30: =AG30&AH30 ->  | BY30: 0
AE31: if
N32: obj
A33: et_ws_01_obj_lock
AF34: 0 | AG34: Данные по источникам финансирования для объекта инфраструктуры или мероприятия в целом
AQ35: =SUM(AT35,AV35,AY35,BB35,BE35,BH35,BK35) -> 0.00 | AR35: =SUM(AT35,AW35,AZ35,BC35,BF35,BI35,BL35) -> 0.00 | AS35: =AQ35-AR35 -> 0.00 | AX35: =AV35-AW35 -> 0.00 | BA35: =AY35-AZ35 -> 0.00 | BD35: =BB35-BC35 -> 0.00 | BG35: =BE35-BF35 -> 0.00 | BJ35: =BH35-BI35 -> 0.00 | BM35: =BK35-BL35 -> 0.00 | BN35: 0 | BR35: =AG35 & BN35 -> 0 | BX35: =AG35&AH35 -> 
AE36: if

Sheet mod_00 (hidden)

Sheet mod_01 (hidden)

Sheet mod_02 (hidden)

Sheet mod_com (hidden)

Sheet modProv (hidden)

Sheet modFill (hidden)

Sheet modHTTP (hidden)

Sheet modReestr (hidden)

Sheet modfrmReestr (hidden)

Sheet modInstruction (hidden)

Sheet modUpdTemplMain (hidden)

Sheet modfrmCheckUpdates (hidden)

Sheet modfrmRegion (hidden)

Sheet REESTR_MO (hidden)
A1: МР | B1: МО | C1: МО_ОКТМО | D1: МО_ТИП | E1: МР | F1: ИМЯ ДИАПАЗОНА
A2: Абзелиловский муниципальный район | B2: Абзелиловский муниципальный район | C2: 80601000 | D2: муниципальный район | E2: Абзелиловский муниципальный район | F2: MO_LIST_2
A3: Абзелиловский муниципальный район | B3: Альмухаметовский сельский совет | C3: 80601404 | D3: сельское поселение | E3: Альшеевский муниципальный район | F3: MO_LIST_3
A4: Абзелиловский муниципальный район | B4: Амангильдинский сельский совет | C4: 80601407 | D4: сельское поселение | E4: Архангельский муниципальный район | F4: MO_LIST_4
A5: Абзелиловский муниципальный район | B5: Аскаровский сельский совет | C5: 80601410 | D5: сельское поселение | E5: Аскинский муниципальный район | F5: MO_LIST_5
A6: Абзелиловский муниципальный район | B6: Баимовский сельский совет | C6: 80601413 | D6: сельское поселение | E6: Аургазинский муниципальный район | F6: MO_LIST_6
A7: Абзелиловский муниципальный район | B7: Бурангуловский сельский совет | C7: 80601416 | D7: сельское поселение | E7: Баймакский муниципальный район | F7: MO_LIST_7
A8: Абзелиловский муниципальный район | B8: Гусевский сельский совет | C8: 80601419 | D8: сельское поселение | E8: Бакалинский муниципальный район | F8: MO_LIST_8
A9: Абзелиловский муниципальный район | B9: Давлетовский сельский совет | C9: 80601422 | D9: сельское поселение | E9: Балтачевский муниципальный район | F9: MO_LIST_9
A10: Абзелиловский муниципальный район | B10: Кирдасовский сельский совет | C10: 80601425 | D10: сельское поселение | E10: Белебеевский муниципальный район | F10: MO_LIST_10
A11: Абзелиловский муниципальный район | B11: Краснобашкирский сельский совет | C11: 80601428 | D11: сельское поселение | E11: Белокатайский муниципальный район | F11: MO_LIST_11
A12: Абзелиловский муниципальный район | B12: Равиловский сельский совет | C12: 80601431 | D12: сельское поселение | E12: Белорецкий муниципальный район | F12: MO_LIST_12
A13: Абзелиловский муниципальный район | B13: Ташбулатовский сельский совет | C13: 80601434 | D13: сельское поселение | E13: Бижбулякский муниципальный район | F13: MO_LIST_13
A14: Абзелиловский муниципальный район | B14: Таштимеровский сельский совет | C14: 80601437 | D14: сельское поселение | E14: Бирский муниципальный район | F14: MO_LIST_14
A15: Абзелиловский муниципальный район | B15: Халиловский сельский совет | C15: 80601440 | D15: сельское поселение | E15: Благоварский муниципальный район | F15: MO_LIST_15
A16: Абзелиловский муниципальный район | B16: Хамитовский сельский совет | C16: 80601443 | D16: сельское поселение | E16: Благовещенский муниципальный район | F16: MO_LIST_16
A17: Абзелиловский муниципальный район | B17: Янгильский сельский совет | C17: 80601446 | D17: сельское поселение | E17: Буздякский муниципальный район | F17: MO_LIST_17
A18: Альшеевский муниципальный район | B18: Абдрашитовский сельский совет | C18: 80602404 | D18: сельское поселение | E18: Бураевский муниципальный район | F18: MO_LIST_18
A19: Альшеевский муниципальный район | B19: Аксеновский сельский совет | C19: 80602406 | D19: сельское поселение | E19: Бурзянский муниципальный район | F19: MO_LIST_19
A20: Альшеевский муниципальный район | B20: Альшеевский муниципальный район | C20: 80602000 | D20: муниципальный район | E20: Гафурийский муниципальный район | F20: MO_LIST_20
A21: Альшеевский муниципальный район | B21: Воздвиженский сельский совет | C21: 80602413 | D21: сельское поселение | E21: Город Агидель | F21: MO_LIST_21
A22: Альшеевский муниципальный район | B22: Гайниямакский сельский совет | C22: 80602416 | D22: сельское поселение | E22: Город Кумертау | F22: MO_LIST_22
A23: Альшеевский муниципальный район | B23: Зеленоклиновский сельский совет | C23: 80602418 | D23: сельское поселение | E23: Город Нефтекамск | F23: MO_LIST_23
A24: Альшеевский муниципальный район | B24: Ибраевский сельский совет | C24: 80602419 | D24: сельское поселение | E24: Город Октябрьский | F24: MO_LIST_24
A25: Альшеевский муниципальный район | B25: Казанский сельский совет | C25: 80602422 | D25: сельское поселение | E25: Город Салават | F25: MO_LIST_25
A26: Альшеевский муниципальный район | B26: Кармышевский сельский совет | C26: 80602428 | D26: сельское поселение | E26: Город Сибай | F26: MO_LIST_26
A27: Альшеевский муниципальный район | B27: Кипчак-Аскаровский сельский совет | C27: 80602431 | D27: сельское поселение | E27: Город Стерлитамак | F27: MO_LIST_27
A28: Альшеевский муниципальный район | B28: Кызыльский сельский совет | C28: 80602437 | D28: сельское поселение | E28: Город Уфа | F28: MO_LIST_28
A29: Альшеевский муниципальный район | B29: Мендяновский сельский совет | C29: 80602440 | D29: сельское поселение | E29: Давлекановский муниципальный район | F29: MO_LIST_29
A30: Альшеевский муниципальный район | B30: Нигматуллинский сельский совет | C30: 80602443 | D30: сельское поселение | E30: Дуванский муниципальный район | F30: MO_LIST_30
A31: Альшеевский муниципальный район | B31: Нижнеаврюзовский сельский совет | C31: 80602446 | D31: сельское поселение | E31: Дюртюлинский муниципальный район | F31: MO_LIST_31
A32: Альшеевский муниципальный район | B32: Никифаровский сельский совет | C32: 80602449 | D32: сельское поселение | E32: Ермекеевский муниципальный район | F32: MO_LIST_32
A33: Альшеевский муниципальный район | B33: Раевский сельский совет | C33: 80602451 | D33: сельское поселение | E33: ЗАТО город Межгорье | F33: MO_LIST_33
A34: Альшеевский муниципальный район | B34: Слаковский сельский совет | C34: 80602455 | D34: сельское поселение | E34: Зианчуринский муниципальный район | F34: MO_LIST_34
A35: Альшеевский муниципальный район | B35: Ташлинский сельский совет | C35: 80602458 | D35: сельское поселение | E35: Зилаирский муниципальный район | F35: MO_LIST_35
A36: Альшеевский муниципальный район | B36: Трунтаишевский сельский совет | C36: 80602461 | D36: сельское поселение | E36: Иглинский муниципальный район | F36: MO_LIST_36
A37: Альшеевский муниципальный район | B37: Чебенлинский сельский совет | C37: 80602464 | D37: сельское поселение | E37: Илишевский муниципальный район | F37: MO_LIST_37
A38: Альшеевский муниципальный район | B38: Шафрановский сельский совет | C38: 80602470 | D38: сельское поселение | E38: Ишимбайский муниципальный район | F38: MO_LIST_38
A39: Архангельский муниципальный район | B39: Абзановский сельский совет | C39: 80603404 | D39: сельское поселение | E39: Калтасинский муниципальный район | F39: MO_LIST_39
A40: Архангельский муниципальный район | B40: Арх-Латышский сельский совет | C40: 80603413 | D40: сельское поселение | E40: Караидельский муниципальный район | F40: MO_LIST_40
A41: Архангельский муниципальный район | B41: Архангельский муниципальный район | C41: 80603000 | D41: муниципальный район | E41: Кармаскалинский муниципальный район | F41: MO_LIST_41
A42: Архангельский муниципальный район | B42: Архангельский сельский совет | C42: 80603410 | D42: сельское поселение | E42: Кигинский муниципальный район | F42: MO_LIST_42
A43: Архангельский муниципальный район | B43: Бакалдинский сельский совет | C43: 80603416 | D43: сельское поселение | E43: Краснокамский муниципальный район | F43: MO_LIST_43
A44: Архангельский муниципальный район | B44: Инзерский сельский совет | C44: 80603419 | D44: сельское поселение | E44: Кугарчинский муниципальный район | F44: MO_LIST_44
A45: Архангельский муниципальный район | B45: Ирныкшинский сельский совет | C45: 80603422 | D45: сельское поселение | E45: Кушнаренковский муниципальный район | F45: MO_LIST_45
A46: Архангельский муниципальный район | B46: Краснозилимский сельский совет | C46: 80603425 | D46: сельское поселение | E46: Куюргазинский муниципальный район | F46: MO_LIST_46
A47: Архангельский муниципальный район | B47: Краснокуртовский сельский совет | C47: 80603428 | D47: сельское поселение | E47: Мелеузовский муниципальный район | F47: MO_LIST_47
A48: Архангельский муниципальный район | B48: Липовский сельский совет | C48: 80603434 | D48: сельское поселение | E48: Мечетлинский муниципальный район | F48: MO_LIST_48
A49: Архангельский муниципальный район | B49: Орловский сельский совет | C49: 80603440 | D49: сельское поселение | E49: Мишкинский муниципальный район | F49: MO_LIST_49
A50: Архангельский муниципальный район | B50: Тавакачевский сельский совет | C50: 80603446 | D50: сельское поселение | E50: Миякинский муниципальный район | F50: MO_LIST_50
A51: Архангельский муниципальный район | B51: Узунларовский сельский совет | C51: 80603450 | D51: сельское поселение | E51: Нуримановский муниципальный район | F51: MO_LIST_51
A52: Аскинский муниципальный район | B52: Арбашевский сельский совет | C52: 80604402 | D52: сельское поселение | E52: Салаватский муниципальный район | F52: MO_LIST_52
A53: Аскинский муниципальный район | B53: Аскинский муниципальный район | C53: 80604000 | D53: муниципальный район | E53: Стерлибашевский муниципальный район | F53: MO_LIST_53
A54: Аскинский муниципальный район | B54: Аскинский сельский совет | C54: 80604404 | D54: сельское поселение | E54: Стерлитамакский муниципальный район | F54: MO_LIST_54
A55: Аскинский муниципальный район | B55: Евбулякский сельский совет | C55: 80604413 | D55: сельское поселение | E55: Татышлинский муниципальный район | F55: MO_LIST_55
A56: Аскинский муниципальный район | B56: Казанчинский сельский совет | C56: 80604416 | D56: сельское поселение | E56: Туймазинский муниципальный район | F56: MO_LIST_56
A57: Аскинский муниципальный район | B57: Карткисяковский сельский совет | C57: 80604418 | D57: сельское поселение | E57: Уфимский муниципальный район | F57: MO_LIST_57
A58: Аскинский муниципальный район | B58: Кашкинский сельский совет | C58: 80604419 | D58: сельское поселение | E58: Учалинский муниципальный район | F58: MO_LIST_58
A59: Аскинский муниципальный район | B59: Ключевский сельский совет | C59: 80604425 | D59: сельское поселение | E59: Федоровский муниципальный район | F59: MO_LIST_59
A60: Аскинский муниципальный район | B60: Кубиязовский сельский совет | C60: 80604428 | D60: сельское поселение | E60: Хайбуллинский муниципальный район | F60: MO_LIST_60
A61: Аскинский муниципальный район | B61: Кунгаковский сельский совет | C61: 80604431 | D61: сельское поселение | E61: Чекмагушевский муниципальный район | F61: MO_LIST_61
A62: Аскинский муниципальный район | B62: Кшлау-Елгинский сельский совет | C62: 80604437 | D62: сельское поселение | E62: Чишминский муниципальный район | F62: MO_LIST_62
A63: Аскинский муниципальный район | B63: Мутабашевский сельский совет | C63: 80604440 | D63: сельское поселение | E63: Шаранский муниципальный район | F63: MO_LIST_63
A64: Аскинский муниципальный район | B64: Петропавловский сельский совет | C64: 80604442 | D64: сельское поселение | E64: Янаульский муниципальный район | F64: MO_LIST_64
A65: Аскинский муниципальный район | B65: Султанбековский сельский совет | C65: 80604443 | D65: сельское поселение
A66: Аскинский муниципальный район | B66: Урмиязовский сельский совет | C66: 80604446 | D66: сельское поселение
A67: Аскинский муниципальный район | B67: Усть-Табасский сельский совет | C67: 80604450 | D67: сельское поселение
A68: Аургазинский муниципальный район | B68: Аургазинский муниципальный район | C68: 80605000 | D68: муниципальный район
A69: Аургазинский муниципальный район | B69: Балыклыкульский сельский совет | C69: 80605402 | D69: сельское поселение
A70: Аургазинский муниципальный район | B70: Батыровский сельский совет | C70: 80605404 | D70: сельское поселение
A71: Аургазинский муниципальный район | B71: Бишкаинский сельский совет | C71: 80605407 | D71: сельское поселение
A72: Аургазинский муниципальный район | B72: Ибраевский сельский совет | C72: 80605410 | D72: сельское поселение
A73: Аургазинский муниципальный район | B73: Исмагиловский сельский совет | C73: 80605413 | D73: сельское поселение
A74: Аургазинский муниципальный район | B74: Ишлинский сельский совет | C74: 80605416 | D74: сельское поселение
A75: Аургазинский муниципальный район | B75: Кебячевский сельский совет | C75: 80605419 | D75: сельское поселение
A76: Аургазинский муниципальный район | B76: Меселинский сельский совет | C76: 80605422 | D76: сельское поселение
A77: Аургазинский муниципальный район | B77: Михайловский сельский совет | C77: 80605425 | D77: сельское поселение
A78: Аургазинский муниципальный район | B78: Нагадакский сельский совет | C78: 80605428 | D78: сельское поселение
A79: Аургазинский муниципальный район | B79: Новокальчировский сельский совет | C79: 80605431 | D79: сельское поселение
A80: Аургазинский муниципальный район | B80: Семенкинский сельский совет | C80: 80605434 | D80: сельское поселение
A81: Аургазинский муниципальный район | B81: Степановский сельский совет | C81: 80605437 | D81: сельское поселение
A82: Аургазинский муниципальный район | B82: Султанмуратовский сельский совет | C82: 80605440 | D82: сельское поселение
A83: Аургазинский муниципальный район | B83: Таштамакский сельский совет | C83: 80605443 | D83: сельское поселение
A84: Аургазинский муниципальный район | B84: Толбазинский сельский совет | C84: 80605446 | D84: сельское поселение
A85: Аургазинский муниципальный район | B85: Тряпинский сельский совет | C85: 80605449 | D85: сельское поселение
A86: Аургазинский муниципальный район | B86: Тукаевский сельский совет | C86: 80605452 | D86: сельское поселение
A87: Аургазинский муниципальный район | B87: Турумбетовский сельский совет | C87: 80605458 | D87: сельское поселение
A88: Аургазинский муниципальный район | B88: Уршакский сельский совет | C88: 80605461 | D88: сельское поселение
A89: Аургазинский муниципальный район | B89: Чуваш-Карамалинский сельский совет | C89: 80605472 | D89: сельское поселение
A90: Баймакский муниципальный район | B90: 1-й Иткуловский сельский совет | C90: 80606416 | D90: сельское поселение
A91: Баймакский муниципальный район | B91: Абдулкаримовский сельский совет | C91: 80606404 | D91: сельское поселение
A92: Баймакский муниципальный район | B92: Акмурунский сельский совет | C92: 80606407 | D92: сельское поселение
A93: Баймакский муниципальный район | B93: Баймакский муниципальный район | C93: 80606000 | D93: муниципальный район
A94: Баймакский муниципальный район | B94: Бекешевский сельский совет | C94: 80606409 | D94: сельское поселение
A95: Баймакский муниципальный район | B95: Биляловский сельский совет | C95: 80606410 | D95: сельское поселение
A96: Баймакский муниципальный район | B96: Город Баймак | C96: 80606101 | D96: городское поселение, в состав которого входит город
A97: Баймакский муниципальный район | B97: Зилаирский сельский совет | C97: 80606413 | D97: сельское поселение
A98: Баймакский муниципальный район | B98: Ишбердинский сельский совет | C98: 80606428 | D98: сельское поселение
A99: Баймакский муниципальный район | B99: Ишмурзинский сельский совет | C99: 80606422 | D99: сельское поселение
A100: Баймакский муниципальный район | B100: Ишмухаметовский сельский совет | C100: 80606425 | D100: сельское поселение
A101: Баймакский муниципальный район | B101: Кульчуровский сельский совет | C101: 80606437 | D101: сельское поселение
A102: Баймакский муниципальный район | B102: Кусеевский сельский совет | C102: 80606431 | D102: сельское поселение
A103: Баймакский муниципальный район | B103: Мерясовский сельский совет | C103: 80606438 | D103: сельское поселение
A104: Баймакский муниципальный район | B104: Мукасовский сельский совет | C104: 80606434 | D104: сельское поселение
A105: Баймакский муниципальный район | B105: Нигаматовский сельский совет | C105: 80606440 | D105: сельское поселение
A106: Баймакский муниципальный район | B106: Семеновский сельский совет | C106: 80606442 | D106: сельское поселение
A107: Баймакский муниципальный район | B107: Сибайский сельский совет | C107: 80606443 | D107: сельское поселение
A108: Баймакский муниципальный район | B108: Тавлыкаевский сельский совет | C108: 80606446 | D108: сельское поселение
A109: Баймакский муниципальный район | B109: Татлыбаевский сельский совет | C109: 80606449 | D109: сельское поселение
A110: Баймакский муниципальный район | B110: Темясовский сельский совет | C110: 80606452 | D110: сельское поселение
A111: Баймакский муниципальный район | B111: Тубинский сельский совет | C111: 80606453 | D111: сельское поселение
A112: Баймакский муниципальный район | B112: Юмашевский сельский совет | C112: 80606455 | D112: сельское поселение
A113: Баймакский муниципальный район | B113: Яратовский сельский совет | C113: 80606459 | D113: сельское поселение
A114: Бакалинский муниципальный район | B114: Ахмановский сельский совет | C114: 80607404 | D114: сельское поселение
A115: Бакалинский муниципальный район | B115: Бакалинский муниципальный район | C115: 80607000 | D115: муниципальный район
A116: Бакалинский муниципальный район | B116: Бакалинский сельский совет | C116: 80607407 | D116: сельское поселение
A117: Бакалинский муниципальный район | B117: Бузюровский сельский совет | C117: 80607413 | D117: сельское поселение
A118: Бакалинский муниципальный район | B118: Дияшевский сельский совет | C118: 80607419 | D118: сельское поселение
A119: Бакалинский муниципальный район | B119: Камышлытамакский сельский совет | C119: 80607425 | D119: сельское поселение
A120: Бакалинский муниципальный район | B120: Килеевский сельский совет | C120: 80607428 | D120: сельское поселение
A121: Бакалинский муниципальный район | B121: Куштиряковский сельский совет | C121: 80607431 | D121: сельское поселение
A122: Бакалинский муниципальный район | B122: Михайловский сельский совет | C122: 80607410 | D122: сельское поселение
A123: Бакалинский муниципальный район | B123: Мустафинский сельский совет | C123: 80607434 | D123: сельское поселение
A124: Бакалинский муниципальный район | B124: Новокатаевский сельский совет | C124: 80607440 | D124: сельское поселение
A125: Бакалинский муниципальный район | B125: Новоурсаевский сельский совет | C125: 80607446 | D125: сельское поселение
A126: Бакалинский муниципальный район | B126: Старокостеевский сельский совет | C126: 80607451 | D126: сельское поселение
A127: Бакалинский муниципальный район | B127: Старокуручевский сельский совет | C127: 80607449 | D127: сельское поселение
A128: Бакалинский муниципальный район | B128: Староматинский сельский совет | C128: 80607455 | D128: сельское поселение
A129: Бакалинский муниципальный район | B129: Старошарашлинский сельский совет | C129: 80607458 | D129: сельское поселение
A130: Бакалинский муниципальный район | B130: Тактагуловский сельский совет | C130: 80607461 | D130: сельское поселение
A131: Бакалинский муниципальный район | B131: Урманаевский сельский совет | C131: 80607464 | D131: сельское поселение
A132: Балтачевский муниципальный район | B132: Балтачевский муниципальный район | C132: 80608000 | D132: муниципальный район
A133: Балтачевский муниципальный район | B133: Богдановский сельский совет | C133: 80608404 | D133: сельское поселение
A134: Балтачевский муниципальный район | B134: Верхнеянактаевский сельский совет | C134: 80608407 | D134: сельское поселение
A135: Балтачевский муниципальный район | B135: Кундашлинский сельский совет | C135: 80608413 | D135: сельское поселение
A136: Балтачевский муниципальный район | B136: Кунтугушевский сельский совет | C136: 80608416 | D136: сельское поселение
A137: Балтачевский муниципальный район | B137: Нижнекарышевский сельский совет | C137: 80608419 | D137: сельское поселение
A138: Балтачевский муниципальный район | B138: Нижнесикиязовский сельский совет | C138: 80608422 | D138: сельское поселение
A139: Балтачевский муниципальный район | B139: Норкинский сельский совет | C139: 80608425 | D139: сельское поселение
A140: Балтачевский муниципальный район | B140: Сейтяковский сельский совет | C140: 80608428 | D140: сельское поселение
A141: Балтачевский муниципальный район | B141: Старобалтачевский сельский совет | C141: 80608431 | D141: сельское поселение
A142: Балтачевский муниципальный район | B142: Староянбаевский сельский совет | C142: 80608434 | D142: сельское поселение
A143: Балтачевский муниципальный район | B143: Тошкуровский сельский совет | C143: 80608437 | D143: сельское поселение
A144: Балтачевский муниципальный район | B144: Тучубаевский сельский совет | C144: 80608440 | D144: сельское поселение
A145: Балтачевский муниципальный район | B145: Шавьядинский сельский совет | C145: 80608441 | D145: сельское поселение
A146: Балтачевский муниципальный район | B146: Штандинский сельский совет | C146: 80608443 | D146: сельское поселение
A147: Балтачевский муниципальный район | B147: Ялангачевский сельский совет | C147: 80608448 | D147: сельское поселение
A148: Белебеевский муниципальный район | B148: Аксаковский сельский совет | C148: 80609401 | D148: сельское поселение
A149: Белебеевский муниципальный район | B149: Анновский сельский совет | C149: 80609413 | D149: сельское поселение
A150: Белебеевский муниципальный район | B150: Баженовский сельский совет | C150: 80609402 | D150: сельское поселение
A151: Белебеевский муниципальный район | B151: Белебеевский муниципальный район | C151: 80609000 | D151: муниципальный район
A152: Белебеевский муниципальный район | B152: Город Белебей | C152: 80609101 | D152: городское поселение, в состав которого входит город
A153: Белебеевский муниципальный район | B153: Донской сельский совет | C153: 80609404 | D153: сельское поселение
A154: Белебеевский муниципальный район | B154: Ермолкинский сельский совет | C154: 80609407 | D154: сельское поселение
A155: Белебеевский муниципальный район | B155: Знаменский сельский совет | C155: 80609410 | D155: сельское поселение
A156: Белебеевский муниципальный район | B156: Максим-Горьковский сельский совет | C156: 80609416 | D156: сельское поселение
A157: Белебеевский муниципальный район | B157: Малиновский сельский совет | C157: 80609419 | D157: сельское поселение
A158: Белебеевский муниципальный район | B158: Метевбашевский сельский совет | C158: 80609425 | D158: сельское поселение
A159: Белебеевский муниципальный район | B159: Приютовский поссовет | C159: 80609165 | D159: городское поселение, в состав которого входит поселок
A160: Белебеевский муниципальный район | B160: Рассветовский сельский совет | C160: 80609428 | D160: сельское поселение
A161: Белебеевский муниципальный район | B161: Семенкинский сельский совет | C161: 80609431 | D161: сельское поселение
A162: Белебеевский муниципальный район | B162: Слакбашевский сельский совет | C162: 80609434 | D162: сельское поселение
A163: Белебеевский муниципальный район | B163: Тузлукушевский сельский совет | C163: 80609437 | D163: сельское поселение
A164: Белебеевский муниципальный район | B164: Усень-Ивановский сельский совет | C164: 80609440 | D164: сельское поселение
A165: Белебеевский муниципальный район | B165: Шаровский сельский совет | C165: 80609443 | D165: сельское поселение
A166: Белокатайский муниципальный район | B166: Атаршинский сельский совет | C166: 80610402 | D166: сельское поселение
A167: Белокатайский муниципальный район | B167: Белокатайский муниципальный район | C167: 80610000 | D167: муниципальный район
A168: Белокатайский муниципальный район | B168: Белянковский сельский совет | C168: 80610404 | D168: сельское поселение
A169: Белокатайский муниципальный район | B169: Емашинский сельский совет | C169: 80610407 | D169: сельское поселение
A170: Белокатайский муниципальный район | B170: Карлыхановский сельский совет | C170: 80610413 | D170: сельское поселение
A171: Белокатайский муниципальный район | B171: Майгазинский сельский совет | C171: 80610416 | D171: сельское поселение
A172: Белокатайский муниципальный район | B172: Нижнеискушинский сельский совет | C172: 80610419 | D172: сельское поселение
A173: Белокатайский муниципальный район | B173: Новобелокатайский сельский совет | C173: 80610422 | D173: сельское поселение
A174: Белокатайский муниципальный район | B174: Ногушинский сельский совет | C174: 80610425 | D174: сельское поселение
A175: Белокатайский муниципальный район | B175: Старобелокатайский сельский совет | C175: 80610428 | D175: сельское поселение
A176: Белокатайский муниципальный район | B176: Тардавский сельский совет | C176: 80610431 | D176: сельское поселение
A177: Белокатайский муниципальный район | B177: Ургалинский сельский совет | C177: 80610434 | D177: сельское поселение
A178: Белокатайский муниципальный район | B178: Утяшевский сельский совет | C178: 80610437 | D178: сельское поселение
A179: Белокатайский муниципальный район | B179: Яныбаевский сельский совет | C179: 80610440 | D179: сельское поселение
A180: Белорецкий муниципальный район | B180: Абзаковский сельский совет | C180: 80611404 | D180: сельское поселение
A181: Белорецкий муниципальный район | B181: Азикеевский сельский совет | C181: 80611407 | D181: сельское поселение
A182: Белорецкий муниципальный район | B182: Ассинский сельский совет | C182: 80611410 | D182: сельское поселение
A183: Белорецкий муниципальный район | B183: Белорецкий муниципальный район | C183: 80611000 | D183: муниципальный район
A184: Белорецкий муниципальный район | B184: Верхнеавзянский сельский совет | C184: 80611415 | D184: сельское поселение
A185: Белорецкий муниципальный район | B185: Город Белорецк | C185: 80611101 | D185: городское поселение, в состав которого входит город
A186: Белорецкий муниципальный район | B186: Железнодорожный сельский совет | C186: 80611418 | D186: сельское поселение
A187: Белорецкий муниципальный район | B187: Зигазинский сельский совет | C187: 80611416 | D187: сельское поселение
A188: Белорецкий муниципальный район | B188: Зуяковский сельский совет | C188: 80611417 | D188: сельское поселение
A189: Белорецкий муниципальный район | B189: Инзерский сельский совет | C189: 80611420 | D189: сельское поселение
A190: Белорецкий муниципальный район | B190: Ишлинский сельский совет | C190: 80611422 | D190: сельское поселение
A191: Белорецкий муниципальный район | B191: Кагинский сельский совет | C191: 80611425 | D191: сельское поселение
A192: Белорецкий муниципальный район | B192: Ломовский сельский совет | C192: 80611427 | D192: сельское поселение
A193: Белорецкий муниципальный район | B193: Николаевский сельский совет | C193: 80611434 | D193: сельское поселение
A194: Белорецкий муниципальный район | B194: Нурский сельский совет | C194: 80611440 | D194: сельское поселение
A195: Белорецкий муниципальный район | B195: Серменевский сельский совет | C195: 80611443 | D195: сельское поселение
A196: Белорецкий муниципальный район | B196: Сосновский сельский совет | C196: 80611446 | D196: сельское поселение
A197: Белорецкий муниципальный район | B197: Тирлянский сельский совет | C197: 80611448 | D197: сельское поселение
A198: Белорецкий муниципальный район | B198: Туканский сельский совет | C198: 80611449 | D198: сельское поселение
A199: Белорецкий муниципальный район | B199: Узянский сельский совет | C199: 80611452 | D199: сельское поселение
A200: Белорецкий муниципальный район | B200: Шигаевский сельский совет | C200: 80611455 | D200: сельское поселение
... 696 more rows

Sheet REESTR_ORG (hidden)

Sheet REESTR_IP (hidden)
B1: L_NAME | C1: L_START_DATE | D1: L_END_DATE | E1: L_IP_COSTS | F1: ORG_NAME | G1: INN_NAME | H1: KPP_NAME | I1: L_OPF | J1: FIL_NAME | K1: VDET_NAME | L1: RST_ORG_ID | M1: L_DECISION_NAME | N1: L_DECISION_TYPE | O1: L_DECISION_NMBR | P1: L_DECISION_DATE | Q1: L_DECISION_URL
A2: 1 | B2: Инвестиционная программа № 04-06/326 от 12.09.2018 МУП Салаватводоканал в сфере водоснабжения и водоотведения по модернизации и развитию инженерных сетей водоснабжения и водоотведения, на территории городского округа Салават на 2019-2023 годы | C2: 01.01.2019 | D2: 31.12.2023 | E2: 2194 | F2: МУП Салаватводоканал | G2: 0266002905 | H2: 026601001 | I2: 6 52 43 | Муниципальные унитарные предприятия | K2: Производство (подъём / добыча) воды :: Очистка воды :: Транспортировка воды | L2: 26472042 | M2: Инвестиционная программа № 04-06/326 от 12.09.2018 МУП Салаватводоканал в сфере водоснабжения и водоотведения по модернизации и развитию инженерных сетей водоснабжения и водоотведения, на территории городского округа Салават на 2019-2023 годы | N2: приказ | O2: 04-06/326 | P2: 12.09.2018 | Q2: https://portal.eias.ru/Portal/DownloadPage.aspx?type=12&guid=e744aecd-eb40-431f-90d0-6728e988b0d2
A3: 2 | B3: Инвестиционная программа № 04/06-326 от 12.09.2018 ДМУП "ГорКомСервис" в сфере водоснабжения и водоотведения по реконструкции существующих объектов инженерных сетей водоснабжения и водоотведения, на территории городского поселения Город Давлеканово, Давлекановский муниципальный район на 2019-2021 годы | C3: 01.01.2019 | D3: 31.12.2021 | E3: 0 | F3: ДМУП "ГорКомСервис" | G3: 0259011320 | H3: 025901001 | I3: 6 52 43 | Муниципальные унитарные предприятия | K3: Производство (подъём / добыча) воды :: Транспортировка воды :: Сбыт (распределение) воды | L3: 28152448 | M3: ИП | N3: приказ | O3: 04/06-326 | P3: 12.09.2018 | Q3: https://portal.eias.ru/Portal/DownloadPage.aspx?type=12&guid=e24aae4c-ffb5-4ed9-9ef7-bec0160a6bfa
A4: 3 | B4: Инвестиционная программа № 04/06-326 от 12.09.2018 ООО ЖКХ с. Семилетка в сфере водоснабжения и водоотведения по развитию, модернизации и реконструкции систем коммунального водоснабжения и водоотведения, на территории муниципального района Дюртюлинский на 2019-2023 годы | C4: 01.01.2019 | D4: 31.12.2023 | E4: 0 | F4: ООО ЖКХ с. Семилетка | G4: 0260011460 | H4: 026001001 | I4: 1 23 00 | Общества с ограниченной ответственностью | K4: Производство (подъём / добыча) воды :: Очистка воды :: Транспортировка воды :: Сбыт (распределение) воды :: Подвоз воды | L4: 31007428 | M4: Инвестиционая программа ООО ЖКХ с. Семилетка в сфере водоснабжения и водоотведения по развития, модернизации и реконструкции | N4: приказ | O4: 04/06-236 | P4: 12.09.2018 | Q4: https://portal.eias.ru/Portal/DownloadPage.aspx?type=12&guid=1f96526d-67ab-4734-a6f0-d910cdc145b4
A5: 4 | B5: Инвестиционная программа № 04/06-383 от 30.10.2018 МУП "Водоканал" (Шаранский) в сфере холодного водоснабжения по модернизации и реконструкции водопроводных сетей, на территории муниципального района Шаранский на 2019-2021 годы | C5: 01.01.2019 | D5: 31.12.2021 | E5: 0 | F5: МУП "Водоканал" (Шаранский) | G5: 0251006470 | H5: 025101001 | I5: 6 52 43 | Муниципальные унитарные предприятия | K5: Производство (подъём / добыча) воды | L5: 27916300 | M5: Инвестиц программа | N5: приказ | O5: 04/06-383 | P5: 30.10.2018 | Q5: https://portal.eias.ru/Portal/DownloadPage.aspx?type=12&guid=ba534166-c6ad-48f9-b1c7-cba2f4087564
A6: 5 | B6: Инвестиционная программа № 04/06-383 от 30.10.2018 МУП "Водоканал" (Шаранский) в сфере холодного водоснабжения по модернизации и реконструкции водопроводных сетей, на территории муниципального района Шаранский на 2019-2021 годы | C6: 01.01.2019 | D6: 31.12.2021 | E6: 0 | F6: МУП "Водоканал" (Шаранский) | G6: 0251006470 | H6: 025101001 | I6: 6 52 43 | Муниципальные унитарные предприятия | K6: Производство (подъём / добыча) воды | L6: 27916300 | M6: Инвестиц. программа | N6: приказ | O6: 04/06-383 | P6: 30.10.2018 | Q6: https://portal.eias.ru/Portal/DownloadPage.aspx?type=12&guid=ba534166-c6ad-48f9-b1c7-cba2f4087564
A7: 6 | B7: Инвестиционная программа № 04/06-383 от 30.10.2018 ООО ЖКХ "Урал" Абзелиловского района РБ в сфере холодного водоснабжения по реконструкции, модернизации и развитию водопроводных сетей, на территории муниципального района Абзелиловский на 2019-2021 годы | C7: 01.01.2019 | D7: 31.12.2021 | E7: 0 | F7: ООО ЖКХ "Урал" Абзелиловского района РБ | G7: 0201010513 | H7: 020101001 | I7: 1 23 00 | Общества с ограниченной ответственностью | K7: Производство (подъём / добыча) воды | L7: 26353611 | M7: ИП | N7: приказ | O7: 04/06-383 | P7: 30.10.2018 | Q7: https://portal.eias.ru/Portal/DownloadPage.aspx?type=12&guid=890f97ad-eba5-4fff-b403-61b42b719414
A8: 7 | B8: Инвестиционная программа № 04/06-415 от 20.11.2018 ООО "Водоканал г. Туймазы" в сфере водоснабжения и водоотведения по развитию, модернизации и реконструкции систем коммунального водоснабжения и водоотведения, на территории городского поселения Город Туймазы, Туймазинский муниципальный район на 2019-2020 годы | C8: 01.01.2019 | D8: 31.12.2020 | E8: 313,3997348292 | F8: ООО "Водоканал г. Туймазы" | G8: 0269036490 | H8: 026901001 | I8: 1 23 00 | Общества с ограниченной ответственностью | K8: Производство (подъём / добыча) воды :: Очистка воды :: Транспортировка воды :: Сбыт (распределение) воды :: Подвоз воды | L8: 31020528 | M8: Приказ МЖКХ РБ | N8: приказ | O8: 04/06-415 | P8: 20.11.2018 | Q8: https://portal.eias.ru/Portal/DownloadPage.aspx?type=12&guid=c5a918b3-9f36-40bb-ada7-658abfe9562e
A9: 8 | B9: Инвестиционная программа № 04/08-374 от 26.10.2018 ООО "ЖКХ С.МОСКОВО" в сфере водоснабжения и водоотведения по развитию централизованных систем холодного водоснабжения и водоотведения, на территории муниципального района Дюртюлинский на 2019-2022 годы | C9: 01.01.2019 | D9: 31.12.2022 | E9: 0 | F9: ООО "ЖКХ С.МОСКОВО" | G9: 0260012390 | H9: 026001001 | I9: 1 23 00 | Общества с ограниченной ответственностью | K9: Производство (подъём / добыча) воды | L9: 27182754 | M9: Инвестиционная программа ООО "ЖКХ с. Москово" по развитию централизованных систем водоснабжения и водоотведения на 2019-2022 годы | N9: приказ | O9: 04/08-374 | P9: 26.10.2018 | Q9: https://portal.eias.ru/Portal/DownloadPage.aspx?type=12&guid=86b3c033-b63b-4e47-afba-9303781ce2f1
A10: 9 | B10: Инвестиционная программа № 142 от 12.10.2018 МУП "Коммунхоз" в сфере водоснабжения по модернизации и реконструкции системы коммунальной инфраструктуры на 2019-2023 годы | C10: 01.01.2019 | D10: 31.01.2023 | E10: 0 | F10: МУП "Коммунхоз" | G10: 0207005936 | H10: 020701001 | I10: 6 52 43 | Муниципальные унитарные предприятия | K10: Производство (подъём / добыча) воды :: Очистка воды | L10: 26471886 | M10: МУП "Коммунхоз" по развитию, модернизации, реконструкции систем коммунального водоснабжения сельского поселения Бакалинский сельсовет муниципального района Бакалинский район Республики Башкортостан | N10: постановление | O10: 04/06-383 | P10: 12.10.2018 | Q10: https://portal.eias.ru/Portal/DownloadPage.aspx?type=12&guid=04e88e1a-0673-4d00-8cb0-fb0fa6228e04
A11: 10 | B11: Инвестиционная программа АО "Водоснабжающая компания" по развитию, модернизации, реконструкции систем коммунального водоснабжения и канализации городского округа город Стерлитамак на 2017 - 2019 годы | C11: 01.01.2017 | D11: 31.12.2019 | E11: 16222,8320981832 | F11: АО "Водоснабжающая компания" | G11: 0268055772 | H11: 026801001 | I11: 1 22 47 | Публичные акционерные общества | K11: Производство (подъём / добыча) воды :: Очистка воды :: Транспортировка воды :: Сбыт (распределение) воды | L11: 26758634 | M11: Об утверждении инвестиционных программ | N11: приказ | O11: 04/06-435 | P11: 30.11.2017 | Q11: https://portal.eias.ru/Portal/DownloadPage.aspx?type=12&guid=bb8ecfb9-d126-4c5b-908c-55534a4ab604
A12: 11 | B12: Инвестиционная программа Ишимбайского муниципального унитарного предприятия "Межрайкоммунводоканал" по развитию систем водоснабжения и водоотведения муниципального района Ишимбайский район на период 2017 - 2021 гг. | C12: 01.01.2017 | D12: 31.12.2021 | E12: 6351,99 | F12: ИМУП "Межрайкоммунводоканал" | G12: 0261002348 | H12: 026101001 | I12: 6 52 43 | Муниципальные унитарные предприятия | K12: Производство (подъём / добыча) воды :: Транспортировка воды :: Сбыт (распределение) воды | L12: 26472050 | M12: Приказ Министерства жилищно-коммунального хозяйства Республики Башкортостан | N12: приказ | O12: 04/06-396 | P12: 17.11.2016 | Q12: https://portal.eias.ru/Portal/DownloadPage.aspx?type=12&guid=ffbaa6a1-d76c-461e-a84a-8917aae968c4
A13: 12 | B13: Инвестиционная программа МУП "Водоканал" по развитию централизованных систем водоснабжения муниципального района Иглинский район на период 2016 - 2021 гг. | C13: 01.01.2016 | D13: 31.12.2021 | E13: 0 | F13: МУП "Водоканал" | G13: 0224009480 | H13: 022401001 | I13: 6 52 43 | Муниципальные унитарные предприятия | K13: Производство (подъём / добыча) воды :: Сбыт (распределение) воды | L13: 26472155 | M13: Об утверждении ИП МУП Водоканал Иглинский МР | N13: приказ | O13: 04/06-236 | P13: 17.08.2015 | Q13: https://portal.eias.ru/Portal/DownloadPage.aspx?type=12&guid=01c67581-2c06-4102-aa65-85025154fced
A14: 13 | B14: Инвестиционная программа МУП "Дюртюливодоканал" по развитию систем водоснабжения и водоотведения муниципального района Дюртюлинский район на 2017-2021 годы | C14: 01.01.2017 | D14: 31.12.2021 | E14: 0 | F14: МУП "Дюртюливодоканал" | G14: 0260006195 | H14: 026001001 | I14: 6 52 43 | Муниципальные унитарные предприятия | K14: Производство (подъём / добыча) воды :: Транспортировка воды :: Сбыт (распределение) воды | L14: 27745143 | M14: Об утверждении инвестиционной программы | N14: приказ | O14: 04/08-374 | P14: 26.10.2018 | Q14: https://portal.eias.ru/Portal/DownloadPage.aspx?type=12&guid=de1f5404-189f-489a-974c-f744e86b3f1a
A15: 14 | B15: Инвестиционная программа МУП "Межрайкоммунводоканал" по развитию централизованных систем водоснабжения и водоотведения на территории городского округа город Кумертау на 2018-2020 годы | C15: 01.01.2018 | D15: 31.12.2020 | E15: 490,0000047822 | F15: МУП "Межрайкоммунводоканал" | G15: 0262000343 | H15: 026201001 | I15: 6 52 43 | Муниципальные унитарные предприятия | K15: Производство (подъём / добыча) воды :: Очистка воды :: Транспортировка воды :: Сбыт (распределение) воды | L15: 26471967 | M15: Об утверждении инвестиционных программ | N15: приказ | O15: 04/06-374 | P15: 23.10.2017 | Q15: https://portal.eias.ru/Portal/DownloadPage.aspx?type=12&guid=47578e27-cf6b-424e-b7b5-71e1f2d1eec6
A16: 15 | B16: Инвестиционная программа МУП "Октябрьсккоммунводоканал" по развитию централизованных систем водоснабжения и водоотведения городского округа город Октябрьский на 2017 - 2019 годы | C16: 01.01.2017 | D16: 31.01.2019 | E16: 1605 | F16: МУП "Октябрьсккоммунводоканал" | G16: 0265026710 | H16: 026501001 | I16: 6 52 43 | Муниципальные унитарные предприятия | K16: Производство (подъём / добыча) воды :: Транспортировка воды :: Сбыт (распределение) воды | L16: 26472030 | M16: Об утверждении инвестиционных программ | N16: приказ | O16: 04/06-435 | P16: 30.11.2017 | Q16: https://portal.eias.ru/Portal/DownloadPage.aspx?type=12&guid=c7a150d7-fa13-499c-92d9-58e6ea326176
A17: 16 | B17: Инвестиционная программа МУП "Сибайводоканал" по развитию систем водоснабжения и водоотведения городского округа город Сибай на 2017 - 2019 годы | C17: 01.01.2017 | D17: 31.12.2019 | E17: 3081,75 | F17: МУП "Сибайводоканал" | G17: 0267018087 | H17: 026701001 | I17: 6 52 43 | Муниципальные унитарные предприятия | K17: Производство (подъём / добыча) воды :: Сбыт (распределение) воды | L17: 30350111 | M17: Об утверждении инвестиционной программы | N17: приказ | O17: 04/06-300 | P17: 08.09.2016 | Q17: https://portal.eias.ru/Portal/DownloadPage.aspx?type=12&guid=ee828f5f-4c31-488c-9dfb-38d58ed0e806
A18: 17 | B18: Инвестиционная программа МУП "Тепловодоснабжение" по реконструкции объектов водоснабжения с. Красноусольский муниципального района Гафурийский район на 2017 - 2019 годы | C18: 01.01.2017 | D18: 31.12.2019 | E18: 0 | F18: МУП "Тепловодоснабжение" | G18: 0219007350 | H18: 021901001 | I18: 6 52 43 | Муниципальные унитарные предприятия | K18: Производство (подъём / добыча) воды | L18: 26471953 | M18: Инвестиционная программа МУП «Тепловодоснабжение» муниципального района Гафурийский район Республики Башкортостан "Реконструкции объектов водоснабжения с. Красноусольский на 2017-2019 гг." | N18: приказ | O18: 04/06-420 | P18: 30.11.2016 | Q18: https://portal.eias.ru/Portal/DownloadPage.aspx?type=12&guid=33f37950-e535-4074-8d99-a1088d344839
A19: 18 | B19: Инвестиционная программа МУП "Уфаводоканал" по развитию централизованных систем водоснабжения и водоотведения муниципального унитарного предприятия по эксплуатации водопроводно-канализационного хозяйства "Уфаводоканал" на 2015 - 2019 годы в целях реализации программы комплексного развития централизованных систем водоснабжения и водоотведения городского округа город Уфа на 2009 - 2025 годы | C19: 01.01.2017 | D19: 31.12.2019 | E19: 10510,0847457627 | F19: МУП "Уфаводоканал" | G19: 0275000238 | H19: 027601001 | I19: 6 52 43 | Муниципальные унитарные предприятия | K19: Производство (подъём / добыча) воды :: Очистка воды :: Транспортировка воды | L19: 26472069 | M19: Об утверждении инвестиционных программ | N19: приказ | O19: 04/06-364 | P19: 06.10.2017 | Q19: https://portal.eias.ru/Portal/DownloadPage.aspx?type=12&guid=25678f66-3d42-4e5a-9988-780dd9054144
A20: 19 | B20: Инвестиционная программа МУП "Учалыводоканал" по развитию, модернизации, оценке и реконструкции систем холодного водоснабжения на 2018-2020 годы | C20: 01.01.2018 | D20: 31.12.2020 | E20: 135 | F20: МУП "Учалыводоканал" | G20: 0270000570 | H20: 027001001 | I20: 6 52 43 | Муниципальные унитарные предприятия | K20: Производство (подъём / добыча) воды :: Очистка воды | L20: 26472460 | M20: Приказ Министерства жилищно-коммунального хозяйства Республики Башкортостан | N20: приказ | O20: 04/06-397 | P20: 09.11.2017 | Q20: https://portal.eias.ru/Portal/DownloadPage.aspx?type=12&guid=2ce7daf4-4c11-4f08-81dc-6661402c6acb
A21: 20 | B21: Инвестиционная программа ООО "Белебеевский водоканал" по развитию систем водоснабжения и водоотведения Белебеевского муниципального района на 2017-2019 годы | C21: 01.01.2017 | D21: 31.12.2019 | E21: 330 | F21: ООО "Белебеевский водоканал" | G21: 0255014715 | H21: 025501001 | I21: 1 23 00 | Общества с ограниченной ответственностью | K21: Производство (подъём / добыча) воды :: Транспортировка воды :: Сбыт (распределение) воды | L21: 26471913 | M21: Министерство-жилищно-коммунального хозяйства РБ | N21: приказ | O21: 04/06-420 | P21: 30.11.2016 | Q21: https://portal.eias.ru/Portal/DownloadPage.aspx?type=12&guid=0b11691f-f2c0-441b-97c8-29dc7b22d509
A22: 21 | B22: Инвестиционная программа ООО "Водоканал" по развитию централизованных систем водоснабжения и водоотведения на 2018-2021 годы | C22: 01.01.2018 | D22: 31.12.2021 | E22: 4686 | F22: ООО "Водоканал" | G22: 0263017332 | H22: 026301001 | I22: 1 23 00 | Общества с ограниченной ответственностью | K22: Производство (подъём / добыча) воды :: Очистка воды :: Транспортировка воды :: Сбыт (распределение) воды | L22: 30376832 | M22: Об утверждении ИП | N22: приказ | O22: 04/06-374 | P22: 23.10.2017 | Q22: https://portal.eias.ru/Portal/DownloadPage.aspx?type=12&guid=555cdd05-fe40-469c-89a0-e6beba268a24
A23: 22 | B23: Инвестиционная программа ООО "Нуримановское ЖКХ" по реконструкции объектов водоснабжения с. Красноусольский муниципального района Нуримановский район на период 2017 - 2019 гг. | C23: 01.01.2017 | D23: 30.12.2019 | E23: 93,13 | F23: ООО «Нуримановское ЖКХ» | G23: 0239005216 | H23: 023901001 | I23: 1 23 00 | Общества с ограниченной ответственностью | K23: Производство (подъём / добыча) воды :: Очистка воды | L23: 26353644 | M23: Инвестиционная программа | N23: приказ | O23: 04/06-421 | P23: 30.11.2016 | Q23: https://portal.eias.ru/Portal/DownloadPage.aspx?type=12&guid=4526eac3-a6e0-48af-a995-0a768c42f19d
A24: 23 | B24: Инвестиционная программа от 12.09.2018 ООО "Водоканал с. Серафимовский" в сфере водоснабжения и водоотведения по развитию, модернизации и реконструкции систем коммунального водоснабжения и водоотведения, на территории муниципального района Туймазинский на 2019-2021 годы | C24: 01.01.2019 | D24: 31.12.2021 | E24: 59,5081983471 | F24: ООО "Водоканал с. Серафимовский" | G24: 0269998106 | H24: 026901001 | I24: 1 23 00 | Общества с ограниченной ответственностью | K24: Производство (подъём / добыча) воды :: Очистка воды :: Транспортировка воды :: Сбыт (распределение) воды :: Подвоз воды | L24: 31076837 | M24: Приказ МЖКХ РБ | N24: приказ | O24: 04/06-326 | P24: 12.09.2018 | Q24: https://portal.eias.ru/Portal/DownloadPage.aspx?type=12&guid=f004170d-64dc-4193-aeb0-e95130df99f1
A25: 24 | B25: Инвестиционная программа от 25.05.2018 МУП "Дуванводоканал" МР Дуванский район РБ в сфере водоснабжения по развитию системы водоснабжения на 2019-2020 годы | C25: 01.01.2019 | D25: 31.12.2020 | E25: 51 | F25: МУП "Дуванводоканал" МР Дуванский район РБ | G25: 0220004836 | H25: 022001001 | I25: 6 52 43 | Муниципальные унитарные предприятия | K25: Производство (подъём / добыча) воды :: Транспортировка воды | L25: 26353627 | M25: Инвестиционная программа МУП "Дуванводоканал" по развитию системы водоснабжения на 2019-2020 годы | N25: приказ | O25: 04/06-187 | P25: 25.05.2018 | Q25: https://portal.eias.ru/Portal/DownloadPage.aspx?type=12&guid=379c396a-217a-4876-92ed-80d3eade04ae
A26: 25 | B26: Инвестиционная программа от 26.10.2018 ООО "Водолей" Илишевского района в сфере холодного водоснабжения по модернизации и реконструкции системы водоснабжения, на территории муниципального района Илишевский на 2019-2023 годы | C26: 01.01.2019 | D26: 31.12.2023 | E26: 50,8497512857 | F26: ООО "Водолей" Илишевского района | G26: 0225009394 | H26: 022501001 | I26: 1 23 00 | Общества с ограниченной ответственностью | K26: Производство (подъём / добыча) воды :: Очистка воды :: Транспортировка воды | L26: 27129164 | M26: Об утверждении инвестиционных программ | N26: приказ | O26: 04/08-374 | P26: 26.10.2018 | Q26: https://portal.eias.ru/Portal/DownloadPage.aspx?type=12&guid=86b3c033-b63b-4e47-afba-9303781ce2f1
A27: 26 | B27: Инвестиционная программа от 29.11.2017 АО «Башкоммунводоканал» в сфере водоснабжения и водоотведения по комплексному развитию единого комплекса объектов, на территории городского поселения Город Бирск, Бирский муниципальный район на 2018-2020 годы | C27: 01.01.2018 | D27: 31.12.2020 | E27: 451,75 | F27: АО «Башкоммунводоканал» | G27: 0278181938 | H27: 027801001 | I27: 1 22 47 | Публичные акционерные общества | K27: Производство (подъём / добыча) воды :: Транспортировка воды :: Сбыт (распределение) воды | L27: 30990030 | M27: Инвестиционная программа ОАО "Башкоммунводоканал" | N27: приказ | O27: 04/06-434 | P27: 29.11.2017 | Q27: https://portal.eias.ru/Portal/DownloadPage.aspx?type=12&guid=5d3265d4-b1b5-4848-8e74-f8280a335a01

Sheet REESTR_IP_2018 (hidden)

Sheet REESTR_TER (hidden)

Sheet REESTR_CNCSN (hidden)

Sheet REESTR_OBJECT (hidden)
B1: LGL_ID | C1: NOMER_NAME | D1: ORG_NAME | E1: INN_NAME | F1: KPP_NAME | G1: FIL_NAME | H1: NOMER2_NAME | I1: NMOB_NAME | J1: DET_NAME | K1: L_ADDRESS_MR | L1: L_ADDRESS_MO | M1: L_ADDRESS_OKTMO | N1: L_ADDRESS_LOCATION | O1: L_ADDRESS_LOC_OKTMO | P1: L_ADDRESS_STREET | Q1: L_ADDRESS_BUILDING | R1: DET2_NAME | S1: MR_NAME | T1: MO_NAME | U1: OKTMO_NAME | V1: LOCATION_NAME | W1: LOCATION_OKTMO_NAME | X1: L_SERVICE_PRODUCTION | Y1: L_SERVICE_TRANSMISSION
A2: 1 | B2: 4293348495 | C2: 4293348495 | D2: АО "Водоснабжающая компания" | E2: 0268055772 | F2: 026801001 | H2: 1 | I2: Насосная станция 1 подъема | J2: НС | K2: Город Стерлитамак | L2: Город Стерлитамак | M2: 80745000 | N2: г Стерлитамак | O2: 80745000001 | P2: ул. Ольховская | Q2: 61а | R2: 1 | S2: Город Стерлитамак | T2: город Стерлитамак | U2: 80745000 | V2: г Стерлитамак | W2: 80745000001 | X2: да | Y2: нет
A3: 2 | B3: 4293348495 | C3: 4293348495 | D3: АО "Водоснабжающая компания" | E3: 0268055772 | F3: 026801001 | H3: 2 | I3: Насосная станция 2 подъема | J3: НС | K3: Город Стерлитамак | L3: Город Стерлитамак | M3: 80745000 | N3: г Стерлитамак | O3: 80745000001 | P3: ул. Ольховская | Q3: 61а | R3: 1 | S3: Город Стерлитамак | T3: город Стерлитамак | U3: 80745000 | V3: г Стерлитамак | W3: 80745000001 | X3: да | Y3: нет
A4: 3 | B4: 4293348495 | C4: 4293348495 | D4: АО "Водоснабжающая компания" | E4: 0268055772 | F4: 026801001 | H4: 3 | I4: Насосная станция 3 подъема | J4: НС | K4: Город Стерлитамак | L4: Город Стерлитамак | M4: 80745000 | N4: г Стерлитамак | O4: 80745000001 | P4: ул. Элеваторная | Q4: 86а | R4: 1 | S4: Город Стерлитамак | T4: город Стерлитамак | U4: 80745000 | V4: г Стерлитамак | W4: 80745000001 | X4: да | Y4: нет
A5: 4 | B5: 4293348495 | C5: 4293348495 | D5: АО "Водоснабжающая компания" | E5: 0268055772 | F5: 026801001 | H5: 4 | I5: Насосная станция подкачки | J5: НС | K5: Город Стерлитамак | L5: Город Стерлитамак | M5: 80745000 | N5: г Стерлитамак | O5: 80745000001 | P5: пер. Цветочный | Q5: 13 | R5: 1 | S5: Город Стерлитамак | T5: город Стерлитамак | U5: 80745000 | V5: г Стерлитамак | W5: 80745000001 | X5: да | Y5: нет
A6: 5 | B6: 4293348495 | C6: 4293348495 | D6: АО "Водоснабжающая компания" | E6: 0268055772 | F6: 026801001 | H6: 5 | I6: Водопроводная сеть | J6: сеть | K6: Город Стерлитамак | L6: Город Стерлитамак | M6: 80745000 | N6: г Стерлитамак | O6: 80745000001 | P6: г. Стерлитамак | Q6: / | R6: 1 | S6: Город Стерлитамак | T6: город Стерлитамак | U6: 80745000 | V6: г Стерлитамак | W6: 80745000001 | X6: нет | Y6: да

Sheet REESTR_STOP_REASON (hidden)
B1: ID | C1: NAME | D1: TYPE
A2: 1 | B2: 808 | C2: выполнение ИП ранее заявленного срока | D2: 1
A3: 2 | B3: 807 | C3: прекращение финансирования | D3: 1

Sheet modClassifierValidate (hidden)

Sheet modCheckCyan (hidden)

Sheet modHyp (hidden)
